Workbook

Sheet Display
F2: CQG Financial Select Sector SPDR® ETF Performance | AB2: =RTD("cqg.rtd", ,"SystemInfo", "Linetime") -> 42886.39375
B5: Exchange Traded Funds Performance | S5: Top 15 Performing Companies
B6: Symbol | C6: Description | H6: Last | I6: NC | J6: %NC | K6: NC/ATR | L6: Open | M6: High | N6: Low | O6: Volume | Q6: Ratio
B7: XLF | C7: =RTD("cqg.rtd", ,"ContractData",B7, "LongDescription",, "T") -> Financial Select Sector SPDR | H7: =RTD("cqg.rtd", ,"ContractData",B7, "LastTradeToday",, "T") -> 23.14 | I7: =RTD("cqg.rtd", ,"ContractData",B7, "NetLastTradeToday",, "T") -> -0.31 | J7: =RTD("cqg.rtd", ,"ContractData",B7, "PerCentNetLastTrade",, "T")/100 -> -0.0132196162 | K7: =I7/RTD("cqg.rtd",,"StudyData",B7, "ATR", "MaType=Sim,Period=10", "ATR","D","-1","ALL",,,"FALSE","T")/100 -> -0.01083916084 | L7: =RTD("cqg.rtd", ,"ContractData",B7, "OPen",, "T") -> 23.45 | M7: =RTD("cqg.rtd", ,"ContractData", B7, "HIgh",, "T") -> 23.46 | N7: =RTD("cqg.rtd", ,"ContractData",B7, "LOw",, "T") -> 23.1 | O7: =RTD("cqg.rtd", ,"ContractData",B7, "T_CVol",, "T") -> 31322511 | Q7: =IFERROR(O7/RTD("cqg.rtd",,"StudyData",B7, "MA", "InputChoice=Vol,MAType=Sim,Period=21", "MA","D","-1","all",,,,"T"),"") -> 0.4730475569
B8: SPY | C8: =RTD("cqg.rtd", ,"ContractData",B8, "LongDescription",, "T") -> SPDR S&P 500 | H8: =RTD("cqg.rtd", ,"ContractData",B8, "LastTradeToday",, "T") -> 240.89 | I8: =RTD("cqg.rtd", ,"ContractData",B8, "NetLastTradeToday",, "T") -> -0.61 | J8: =RTD("cqg.rtd", ,"ContractData",B8, "PerCentNetLastTrade",, "T")/100 -> -0.002525879917 | K8: =I8/RTD("cqg.rtd",,"StudyData",B8, "ATR", "MaType=Sim,Period=10", "ATR","D","-1","ALL",,,"FALSE","T")/100 -> -0.003940568475 | L8: =RTD("cqg.rtd", ,"ContractData",B8, "OPen",, "T") -> 241.84 | M8: =RTD("cqg.rtd", ,"ContractData", B8, "HIgh",, "T") -> 241.88 | N8: =RTD("cqg.rtd", ,"ContractData",B8, "LOw",, "T") -> 240.64 | O8: =RTD("cqg.rtd", ,"ContractData",B8, "T_CVol",, "T") -> 12469008 | Q8: =IFERROR(O8/RTD("cqg.rtd",,"StudyData",B8, "MA", "InputChoice=Vol,MAType=Sim,Period=21", "MA","D","-1","all",,,,"T"),"") -> 0.1870609585
B9: XLF | C9: =RTD("cqg.rtd", ,"ContractData",B9, "LongDescription",, "T") -> Financial Select Sector SPDR | H9: =RTD("cqg.rtd", ,"ContractData",B9, "LastTradeToday",, "T") -> 23.14 | I9: =RTD("cqg.rtd", ,"ContractData",B9, "NetLastTradeToday",, "T") -> -0.31 | J9: =RTD("cqg.rtd", ,"ContractData",B9, "PerCentNetLastTrade",, "T")/100 -> -0.0132196162 | K9: =I9/RTD("cqg.rtd",,"StudyData",B9, "ATR", "MaType=Sim,Period=10", "ATR","D","-1","ALL",,,"FALSE","T")/100 -> -0.01083916084 | L9: =RTD("cqg.rtd", ,"ContractData",B9, "OPen",, "T") -> 23.45 | M9: =RTD("cqg.rtd", ,"ContractData", B9, "HIgh",, "T") -> 23.46 | N9: =RTD("cqg.rtd", ,"ContractData",B9, "LOw",, "T") -> 23.1 | O9: =RTD("cqg.rtd", ,"ContractData",B9, "T_CVol",, "T") -> 31322511 | Q9: =IFERROR(O9/RTD("cqg.rtd",,"StudyData",B9, "MA", "InputChoice=Vol,MAType=Sim,Period=21", "MA","D","-1","all",,,,"T"),"") -> 0.4730475569
B10: GDX | C10: =RTD("cqg.rtd", ,"ContractData",B10, "LongDescription",, "T") -> Market Vectors Gold Miners ETF | H10: =RTD("cqg.rtd", ,"ContractData",B10, "LastTradeToday",, "T") -> 22.66 | I10: =RTD("cqg.rtd", ,"ContractData",B10, "NetLastTradeToday",, "T") -> 0.07 | J10: =RTD("cqg.rtd", ,"ContractData",B10, "PerCentNetLastTrade",, "T")/100 -> 0.003098716246 | K10: =I10/RTD("cqg.rtd",,"StudyData",B10, "ATR", "MaType=Sim,Period=10", "ATR","D","-1","ALL",,,"FALSE","T")/100 -> 0.001291512915 | L10: =RTD("cqg.rtd", ,"ContractData",B10, "OPen",, "T") -> 22.68 | M10: =RTD("cqg.rtd", ,"ContractData", B10, "HIgh",, "T") -> 22.76 | N10: =RTD("cqg.rtd", ,"ContractData",B10, "LOw",, "T") -> 22.61 | O10: =RTD("cqg.rtd", ,"ContractData",B10, "T_CVol",, "T") -> 4887823 | Q10: =IFERROR(O10/RTD("cqg.rtd",,"StudyData",B10, "MA", "InputChoice=Vol,MAType=Sim,Period=21", "MA","D","-1","all",,,,"T"),"") -> 0.09693049064
B11: FXI | C11: =RTD("cqg.rtd", ,"ContractData",B11, "LongDescription",, "T") -> iShares China Large-Cap ETF | H11: =RTD("cqg.rtd", ,"ContractData",B11, "LastTradeToday",, "T") -> 40.1 | I11: =RTD("cqg.rtd", ,"ContractData",B11, "NetLastTradeToday",, "T") -> -0.25 | J11: =RTD("cqg.rtd", ,"ContractData",B11, "PerCentNetLastTrade",, "T")/100 -> -0.006195786865 | K11: =I11/RTD("cqg.rtd",,"StudyData",B11, "ATR", "MaType=Sim,Period=10", "ATR","D","-1","ALL",,,"FALSE","T")/100 -> -0.00700280112 | L11: =RTD("cqg.rtd", ,"ContractData",B11, "OPen",, "T") -> 40.23 | M11: =RTD("cqg.rtd", ,"ContractData", B11, "HIgh",, "T") -> 40.28 | N11: =RTD("cqg.rtd", ,"ContractData",B11, "LOw",, "T") -> 40.07 | O11: =RTD("cqg.rtd", ,"ContractData",B11, "T_CVol",, "T") -> 2959806 | Q11: =IFERROR(O11/RTD("cqg.rtd",,"StudyData",B11, "MA", "InputChoice=Vol,MAType=Sim,Period=21", "MA","D","-1","all",,,,"T"),"") -> 0.1846100573
B12: IWF | C12: =RTD("cqg.rtd", ,"ContractData",B12, "LongDescription",, "T") -> iShares Russell 1000 Growth ETF | H12: =RTD("cqg.rtd", ,"ContractData",B12, "LastTradeToday",, "T") -> 119.01 | I12: =RTD("cqg.rtd", ,"ContractData",B12, "NetLastTradeToday",, "T") -> -0.24 | J12: =RTD("cqg.rtd", ,"ContractData",B12, "PerCentNetLastTrade",, "T")/100 -> -0.002012578616 | K12: =I12/RTD("cqg.rtd",,"StudyData",B12, "ATR", "MaType=Sim,Period=10", "ATR","D","-1","ALL",,,"FALSE","T")/100 -> -0.002881152461 | L12: =RTD("cqg.rtd", ,"ContractData",B12, "OPen",, "T") -> 119.47 | M12: =RTD("cqg.rtd", ,"ContractData", B12, "HIgh",, "T") -> 119.54 | N12: =RTD("cqg.rtd", ,"ContractData",B12, "LOw",, "T") -> 118.83 | O12: =RTD("cqg.rtd", ,"ContractData",B12, "T_CVol",, "T") -> 221713 | Q12: =IFERROR(O12/RTD("cqg.rtd",,"StudyData",B12, "MA", "InputChoice=Vol,MAType=Sim,Period=21", "MA","D","-1","all",,,,"T"),"") -> 0.1686855673
B13: IWO | C13: =RTD("cqg.rtd", ,"ContractData",B13, "LongDescription",, "T") -> iShares Russell 2000 Growth ETF | H13: =RTD("cqg.rtd", ,"ContractData",B13, "LastTradeToday",, "T") -> 161.78 | I13: =RTD("cqg.rtd", ,"ContractData",B13, "NetLastTradeToday",, "T") -> -1.52 | J13: =RTD("cqg.rtd", ,"ContractData",B13, "PerCentNetLastTrade",, "T")/100 -> -0.009308022045 | K13: =I13/RTD("cqg.rtd",,"StudyData",B13, "ATR", "MaType=Sim,Period=10", "ATR","D","-1","ALL",,,"FALSE","T")/100 -> -0.008602150538 | L13: =RTD("cqg.rtd", ,"ContractData",B13, "OPen",, "T") -> 163.92 | M13: =RTD("cqg.rtd", ,"ContractData", B13, "HIgh",, "T") -> 164.09 | N13: =RTD("cqg.rtd", ,"ContractData",B13, "LOw",, "T") -> 161.33 | O13: =RTD("cqg.rtd", ,"ContractData",B13, "T_CVol",, "T") -> 92223 | Q13: =IFERROR(O13/RTD("cqg.rtd",,"StudyData",B13, "MA", "InputChoice=Vol,MAType=Sim,Period=21", "MA","D","-1","all",,,,"T"),"") -> 0.2157099048
B14: EP | C14: =RTD("cqg.rtd", ,"ContractData",B14, "LongDescription",, "T") -> E-Mini S&P 500, Jun 17 | H14: =RTD("cqg.rtd", ,"ContractData",B14, "LastTradeToday",, "T") -> 2405.5 | I14: =RTD("cqg.rtd", ,"ContractData",B14, "NetLastTradeToday",, "T") -> -5.25 | J14: =RTD("cqg.rtd", ,"ContractData",B14, "PerCentNetLastTrade",, "T")/100 -> -0.002177745515 | K14: =I14/RTD("cqg.rtd",,"StudyData",B14, "ATR", "MaType=Sim,Period=10", "ATR","D","-1","ALL",,,"FALSE","T")/100 -> -0.002896551724 | L14: =RTD("cqg.rtd", ,"ContractData",B14, "OPen",, "T") -> 2410.5 | M14: =RTD("cqg.rtd", ,"ContractData", B14, "HIgh",, "T") -> 2416.75 | N14: =RTD("cqg.rtd", ,"ContractData",B14, "LOw",, "T") -> 2402.75 | O14: =RTD("cqg.rtd", ,"ContractData",B14, "T_CVol",, "T") -> 561228 | Q14: =IFERROR(O14/RTD("cqg.rtd",,"StudyData",B14, "MA", "InputChoice=Vol,MAType=Sim,Period=21", "MA","D","-1","all",,,,"T"),"") -> 0.4471088691
B15: XLE | C15: =RTD("cqg.rtd", ,"ContractData",B15, "LongDescription",, "T") -> Energy Select Sector SPDR | H15: =RTD("cqg.rtd", ,"ContractData",B15, "LastTradeToday",, "T") -> 65.37 | I15: =RTD("cqg.rtd", ,"ContractData",B15, "NetLastTradeToday",, "T") -> -0.35 | J15: =RTD("cqg.rtd", ,"ContractData",B15, "PerCentNetLastTrade",, "T")/100 -> -0.005325623859 | K15: =I15/RTD("cqg.rtd",,"StudyData",B15, "ATR", "MaType=Sim,Period=10", "ATR","D","-1","ALL",,,"FALSE","T")/100 -> -0.003914988814 | L15: =RTD("cqg.rtd", ,"ContractData",B15, "OPen",, "T") -> 65.2 | M15: =RTD("cqg.rtd", ,"ContractData", B15, "HIgh",, "T") -> 65.53 | N15: =RTD("cqg.rtd", ,"ContractData",B15, "LOw",, "T") -> 65.12 | O15: =RTD("cqg.rtd", ,"ContractData",B15, "T_CVol",, "T") -> 3486641 | Q15: =IFERROR(O15/RTD("cqg.rtd",,"StudyData",B15, "MA", "InputChoice=Vol,MAType=Sim,Period=21", "MA","D","-1","all",,,,"T"),"") -> 0.2287403214
B16: USO | C16: =RTD("cqg.rtd", ,"ContractData",B16, "LongDescription",, "T") -> United States Oil Fund | H16: =RTD("cqg.rtd", ,"ContractData",B16, "LastTradeToday",, "T") -> 9.91 | I16: =RTD("cqg.rtd", ,"ContractData",B16, "NetLastTradeToday",, "T") -> -0.32 | J16: =RTD("cqg.rtd", ,"ContractData",B16, "PerCentNetLastTrade",, "T")/100 -> -0.03128054741 | K16: =I16/RTD("cqg.rtd",,"StudyData",B16, "ATR", "MaType=Sim,Period=10", "ATR","D","-1","ALL",,,"FALSE","T")/100 -> -0.01441441441 | L16: =RTD("cqg.rtd", ,"ContractData",B16, "OPen",, "T") -> 10.02 | M16: =RTD("cqg.rtd", ,"ContractData", B16, "HIgh",, "T") -> 10.02 | N16: =RTD("cqg.rtd", ,"ContractData",B16, "LOw",, "T") -> 9.88 | O16: =RTD("cqg.rtd", ,"ContractData",B16, "T_CVol",, "T") -> 8622897 | Q16: =IFERROR(O16/RTD("cqg.rtd",,"StudyData",B16, "MA", "InputChoice=Vol,MAType=Sim,Period=21", "MA","D","-1","all",,,,"T"),"") -> 0.2713671901
C17: Top 15 Description | H17: Last | I17: NC | J17: %NC | K17: NC/ATR | L17: Open | M17: High | N17: Low | O17: Volume | Q17: Ratio
A18: =TRIM(XLF!O1) -> S.US.SPGI | B18: News | C18: =RTD("cqg.rtd", ,"ContractData",A18, "LongDescription",, "T")&" ("&RIGHT(A18,LEN(A18)-5)&")" -> S&P Global Inc. (SPGI) | H18: =RTD("cqg.rtd", ,"ContractData",A18, "LastTradeToday",, "T") -> 141.35 | I18: =RTD("cqg.rtd", ,"ContractData",A18, "NetLastTradeToday",, "T") -> 0.54 | J18: =RTD("cqg.rtd", ,"ContractData",A18, "PerCentNetLastTrade",, "T")/100 -> 0.003834954904 | K18: =I18/RTD("cqg.rtd",,"StudyData",A18, "ATR", "MaType=Sim,Period=10", "ATR","D","-1","ALL",,,"FALSE","T")/100 -> 0.003264812576 | L18: =RTD("cqg.rtd", ,"ContractData",A18, "OPen",, "T") -> 140.83 | M18: =RTD("cqg.rtd", ,"ContractData", A18, "HIgh",, "T") -> 141.71 | N18: =RTD("cqg.rtd", ,"ContractData",A18, "LOw",, "T") -> 140.53 | O18: =RTD("cqg.rtd", ,"ContractData",A18, "T_CVol",, "T") -> 131428 | Q18: =IFERROR(O18/RTD("cqg.rtd",,"StudyData",A18, "MA", "InputChoice=Vol,MAType=Sim,Period=21", "MA","D","-1","all",,,,"T"),"") -> 0.1485415018 | R18: =XLF!Q1 -> https://finance.yahoo.com/quote/SPGI
A19: =TRIM(XLF!O2) -> S.US.CB | B19: News | C19: =RTD("cqg.rtd", ,"ContractData",A19, "LongDescription",, "T")&" ("&RIGHT(A19,LEN(A19)-5)&")" -> Chubb Corporation (CB) | H19: =RTD("cqg.rtd", ,"ContractData",A19, "LastTradeToday",, "T") -> 142.39 | I19: =RTD("cqg.rtd", ,"ContractData",A19, "NetLastTradeToday",, "T") -> 0.5 | J19: =RTD("cqg.rtd", ,"ContractData",A19, "PerCentNetLastTrade",, "T")/100 -> 0.003523856509 | K19: =I19/RTD("cqg.rtd",,"StudyData",A19, "ATR", "MaType=Sim,Period=10", "ATR","D","-1","ALL",,,"FALSE","T")/100 -> 0.003822629969 | L19: =RTD("cqg.rtd", ,"ContractData",A19, "OPen",, "T") -> 141.96 | M19: =RTD("cqg.rtd", ,"ContractData", A19, "HIgh",, "T") -> 142.55 | N19: =RTD("cqg.rtd", ,"ContractData",A19, "LOw",, "T") -> 141.83 | O19: =RTD("cqg.rtd", ,"ContractData",A19, "T_CVol",, "T") -> 150055 | Q19: =IFERROR(O19/RTD("cqg.rtd",,"StudyData",A19, "MA", "InputChoice=Vol,MAType=Sim,Period=21", "MA","D","-1","all",,,,"T"),"") -> 0.1170409999 | R19: =XLF!Q2 -> https://finance.yahoo.com/quote/CB
A20: =TRIM(XLF!O3) -> S.US.ALL | B20: News | C20: =RTD("cqg.rtd", ,"ContractData",A20, "LongDescription",, "T")&" ("&RIGHT(A20,LEN(A20)-5)&")" -> Allstate Corporation (ALL) | H20: =RTD("cqg.rtd", ,"ContractData",A20, "LastTradeToday",, "T") -> 86.25 | I20: =RTD("cqg.rtd", ,"ContractData",A20, "NetLastTradeToday",, "T") -> 0.25 | J20: =RTD("cqg.rtd", ,"ContractData",A20, "PerCentNetLastTrade",, "T")/100 -> 0.002906976744 | K20: =I20/RTD("cqg.rtd",,"StudyData",A20, "ATR", "MaType=Sim,Period=10", "ATR","D","-1","ALL",,,"FALSE","T")/100 -> 0.002923976608 | L20: =RTD("cqg.rtd", ,"ContractData",A20, "OPen",, "T") -> 86.15 | M20: =RTD("cqg.rtd", ,"ContractData", A20, "HIgh",, "T") -> 86.35 | N20: =RTD("cqg.rtd", ,"ContractData",A20, "LOw",, "T") -> 85.93 | O20: =RTD("cqg.rtd", ,"ContractData",A20, "T_CVol",, "T") -> 192927 | Q20: =IFERROR(O20/RTD("cqg.rtd",,"StudyData",A20, "MA", "InputChoice=Vol,MAType=Sim,Period=21", "MA","D","-1","all",,,,"T"),"") -> 0.1003762897 | R20: =XLF!Q3 -> https://finance.yahoo.com/quote/ALL
A21: =TRIM(XLF!O4) -> S.US.AON | B21: News | C21: =RTD("cqg.rtd", ,"ContractData",A21, "LongDescription",, "T")&" ("&RIGHT(A21,LEN(A21)-5)&")" -> AON Corporation (AON) | H21: =RTD("cqg.rtd", ,"ContractData",A21, "LastTradeToday",, "T") -> 131.06 | I21: =RTD("cqg.rtd", ,"ContractData",A21, "NetLastTradeToday",, "T") -> 0.35 | J21: =RTD("cqg.rtd", ,"ContractData",A21, "PerCentNetLastTrade",, "T")/100 -> 0.002677683421 | K21: =I21/RTD("cqg.rtd",,"StudyData",A21, "ATR", "MaType=Sim,Period=10", "ATR","D","-1","ALL",,,"FALSE","T")/100 -> 0.002696456086 | L21: =RTD("cqg.rtd", ,"ContractData",A21, "OPen",, "T") -> 131.11 | M21: =RTD("cqg.rtd", ,"ContractData", A21, "HIgh",, "T") -> 131.62 | N21: =RTD("cqg.rtd", ,"ContractData",A21, "LOw",, "T") -> 130.8 | O21: =RTD("cqg.rtd", ,"ContractData",A21, "T_CVol",, "T") -> 115980 | Q21: =IFERROR(O21/RTD("cqg.rtd",,"StudyData",A21, "MA", "InputChoice=Vol,MAType=Sim,Period=21", "MA","D","-1","all",,,,"T"),"") -> 0.09203077804 | R21: =XLF!Q4 -> https://finance.yahoo.com/quote/AON
A22: =TRIM(XLF!O5) -> S.US.TRV | B22: News | C22: =RTD("cqg.rtd", ,"ContractData",A22, "LongDescription",, "T")&" ("&RIGHT(A22,LEN(A22)-5)&")" -> Travelers Companies, Inc (TRV) | H22: =RTD("cqg.rtd", ,"ContractData",A22, "LastTradeToday",, "T") -> 123.95 | I22: =RTD("cqg.rtd", ,"ContractData",A22, "NetLastTradeToday",, "T") -> 0.22 | J22: =RTD("cqg.rtd", ,"ContractData",A22, "PerCentNetLastTrade",, "T")/100 -> 0.001778065142 | K22: =I22/RTD("cqg.rtd",,"StudyData",A22, "ATR", "MaType=Sim,Period=10", "ATR","D","-1","ALL",,,"FALSE","T")/100 -> 0.001827242525 | L22: =RTD("cqg.rtd", ,"ContractData",A22, "OPen",, "T") -> 123.87 | M22: =RTD("cqg.rtd", ,"ContractData", A22, "HIgh",, "T") -> 124.09 | N22: =RTD("cqg.rtd", ,"ContractData",A22, "LOw",, "T") -> 123.53 | O22: =RTD("cqg.rtd", ,"ContractData",A22, "T_CVol",, "T") -> 140601 | Q22: =IFERROR(O22/RTD("cqg.rtd",,"StudyData",A22, "MA", "InputChoice=Vol,MAType=Sim,Period=21", "MA","D","-1","all",,,,"T"),"") -> 0.1067445048 | R22: =XLF!Q5 -> https://finance.yahoo.com/quote/TRV
A23: =TRIM(XLF!O6) -> S.US.NDAQ | B23: News | C23: =RTD("cqg.rtd", ,"ContractData",A23, "LongDescription",, "T")&" ("&RIGHT(A23,LEN(A23)-5)&")" -> Nasdaq, Inc. (NDAQ) | H23: =RTD("cqg.rtd", ,"ContractData",A23, "LastTradeToday",, "T") -> 67.51 | I23: =RTD("cqg.rtd", ,"ContractData",A23, "NetLastTradeToday",, "T") -> 0.09 | J23: =RTD("cqg.rtd", ,"ContractData",A23, "PerCentNetLastTrade",, "T")/100 -> 0.001334915455 | K23: =I23/RTD("cqg.rtd",,"StudyData",A23, "ATR", "MaType=Sim,Period=10", "ATR","D","-1","ALL",,,"FALSE","T")/100 -> 0.001304347826 | L23: =RTD("cqg.rtd", ,"ContractData",A23, "OPen",, "T") -> 67.68 | M23: =RTD("cqg.rtd", ,"ContractData", A23, "HIgh",, "T") -> 68.06 | N23: =RTD("cqg.rtd", ,"ContractData",A23, "LOw",, "T") -> 67.42 | O23: =RTD("cqg.rtd", ,"ContractData",A23, "T_CVol",, "T") -> 110645 | Q23: =IFERROR(O23/RTD("cqg.rtd",,"StudyData",A23, "MA", "InputChoice=Vol,MAType=Sim,Period=21", "MA","D","-1","all",,,,"T"),"") -> 0.1330818144 | R23: =XLF!Q6 -> https://finance.yahoo.com/quote/NDAQ
A24: =TRIM(XLF!O7) -> S.US.PGR | B24: News | C24: =RTD("cqg.rtd", ,"ContractData",A24, "LongDescription",, "T")&" ("&RIGHT(A24,LEN(A24)-5)&")" -> Progressive Corp (PGR) | H24: =RTD("cqg.rtd", ,"ContractData",A24, "LastTradeToday",, "T") -> 42.27 | I24: =RTD("cqg.rtd", ,"ContractData",A24, "NetLastTradeToday",, "T") -> 0.05 | J24: =RTD("cqg.rtd", ,"ContractData",A24, "PerCentNetLastTrade",, "T")/100 -> 0.001184272856 | K24: =I24/RTD("cqg.rtd",,"StudyData",A24, "ATR", "MaType=Sim,Period=10", "ATR","D","-1","ALL",,,"FALSE","T")/100 -> 0.0008038585209 | L24: =RTD("cqg.rtd", ,"ContractData",A24, "OPen",, "T") -> 42.26 | M24: =RTD("cqg.rtd", ,"ContractData", A24, "HIgh",, "T") -> 42.39 | N24: =RTD("cqg.rtd", ,"ContractData",A24, "LOw",, "T") -> 42.17 | O24: =RTD("cqg.rtd", ,"ContractData",A24, "T_CVol",, "T") -> 414822 | Q24: =IFERROR(O24/RTD("cqg.rtd",,"StudyData",A24, "MA", "InputChoice=Vol,MAType=Sim,Period=21", "MA","D","-1","all",,,,"T"),"") -> 0.1472506572 | R24: =XLF!Q7 -> https://finance.yahoo.com/quote/PGR
A25: =TRIM(XLF!O8) -> S.US.WLTW | B25: News | C25: =RTD("cqg.rtd", ,"ContractData",A25, "LongDescription",, "T")&" ("&RIGHT(A25,LEN(A25)-5)&")" -> Willis Towers Watson (WLTW) | H25: =RTD("cqg.rtd", ,"ContractData",A25, "LastTradeToday",, "T") -> 145.19 | I25: =RTD("cqg.rtd", ,"ContractData",A25, "NetLastTradeToday",, "T") -> 0.15 | J25: =RTD("cqg.rtd", ,"ContractData",A25, "PerCentNetLastTrade",, "T")/100 -> 0.001034197463 | K25: =I25/RTD("cqg.rtd",,"StudyData",A25, "ATR", "MaType=Sim,Period=10", "ATR","D","-1","ALL",,,"FALSE","T")/100 -> 0.0006815084053 | L25: =RTD("cqg.rtd", ,"ContractData",A25, "OPen",, "T") -> 145.05 | M25: =RTD("cqg.rtd", ,"ContractData", A25, "HIgh",, "T") -> 145.37 | N25: =RTD("cqg.rtd", ,"ContractData",A25, "LOw",, "T") -> 144.04 | O25: =RTD("cqg.rtd", ,"ContractData",A25, "T_CVol",, "T") -> 144929 | Q25: =IFERROR(O25/RTD("cqg.rtd",,"StudyData",A25, "MA", "InputChoice=Vol,MAType=Sim,Period=21", "MA","D","-1","all",,,,"T"),"") -> 0.1180993431 | R25: =XLF!Q8 -> https://finance.yahoo.com/quote/WLTW
A26: =TRIM(XLF!O9) -> S.US.ICE | B26: News | C26: =RTD("cqg.rtd", ,"ContractData",A26, "LongDescription",, "T")&" ("&RIGHT(A26,LEN(A26)-5)&")" -> Intercontinental, Inc. (ICE) | H26: =RTD("cqg.rtd", ,"ContractData",A26, "LastTradeToday",, "T") -> 60.22 | I26: =RTD("cqg.rtd", ,"ContractData",A26, "NetLastTradeToday",, "T") -> 0.06 | J26: =RTD("cqg.rtd", ,"ContractData",A26, "PerCentNetLastTrade",, "T")/100 -> 0.0009973404255 | K26: =I26/RTD("cqg.rtd",,"StudyData",A26, "ATR", "MaType=Sim,Period=10", "ATR","D","-1","ALL",,,"FALSE","T")/100 -> 0.0008683068017 | L26: =RTD("cqg.rtd", ,"ContractData",A26, "OPen",, "T") -> 60.86 | M26: =RTD("cqg.rtd", ,"ContractData", A26, "HIgh",, "T") -> 60.86 | N26: =RTD("cqg.rtd", ,"ContractData",A26, "LOw",, "T") -> 59.91 | O26: =RTD("cqg.rtd", ,"ContractData",A26, "T_CVol",, "T") -> 230489 | Q26: =IFERROR(O26/RTD("cqg.rtd",,"StudyData",A26, "MA", "InputChoice=Vol,MAType=Sim,Period=21", "MA","D","-1","all",,,,"T"),"") -> 0.09461780314 | R26: =XLF!Q9 -> https://finance.yahoo.com/quote/ICE
A27: =TRIM(XLF!O10) -> S.US.XL | B27: News | C27: =RTD("cqg.rtd", ,"ContractData",A27, "LongDescription",, "T")&" ("&RIGHT(A27,LEN(A27)-5)&")" -> XL Group plc (XL) | H27: =RTD("cqg.rtd", ,"ContractData",A27, "LastTradeToday",, "T") -> 43.44 | I27: =RTD("cqg.rtd", ,"ContractData",A27, "NetLastTradeToday",, "T") -> 0.04 | J27: =RTD("cqg.rtd", ,"ContractData",A27, "PerCentNetLastTrade",, "T")/100 -> 0.0009216589862 | K27: =I27/RTD("cqg.rtd",,"StudyData",A27, "ATR", "MaType=Sim,Period=10", "ATR","D","-1","ALL",,,"FALSE","T")/100 -> 0.0007272727273 | L27: =RTD("cqg.rtd", ,"ContractData",A27, "OPen",, "T") -> 43.38 | M27: =RTD("cqg.rtd", ,"ContractData", A27, "HIgh",, "T") -> 43.54 | N27: =RTD("cqg.rtd", ,"ContractData",A27, "LOw",, "T") -> 43.25 | O27: =RTD("cqg.rtd", ,"ContractData",A27, "T_CVol",, "T") -> 75991 | Q27: =IFERROR(O27/RTD("cqg.rtd",,"StudyData",A27, "MA", "InputChoice=Vol,MAType=Sim,Period=21", "MA","D","-1","all",,,,"T"),"") -> 0.0586837874 | R27: =XLF!Q10 -> https://finance.yahoo.com/quote/XL | S27: Bottom 15 Performing Companies
A28: =TRIM(XLF!O11) -> S.US.CINF | B28: News | C28: =RTD("cqg.rtd", ,"ContractData",A28, "LongDescription",, "T")&" ("&RIGHT(A28,LEN(A28)-5)&")" -> Cincinnati Fincl Corp (CINF) | H28: =RTD("cqg.rtd", ,"ContractData",A28, "LastTradeToday",, "T") -> 69.59 | I28: =RTD("cqg.rtd", ,"ContractData",A28, "NetLastTradeToday",, "T") -> 0.06 | J28: =RTD("cqg.rtd", ,"ContractData",A28, "PerCentNetLastTrade",, "T")/100 -> 0.0008629368618 | K28: =I28/RTD("cqg.rtd",,"StudyData",A28, "ATR", "MaType=Sim,Period=10", "ATR","D","-1","ALL",,,"FALSE","T")/100 -> 0.0008547008547 | L28: =RTD("cqg.rtd", ,"ContractData",A28, "OPen",, "T") -> 69.81 | M28: =RTD("cqg.rtd", ,"ContractData", A28, "HIgh",, "T") -> 70.03 | N28: =RTD("cqg.rtd", ,"ContractData",A28, "LOw",, "T") -> 69.36 | O28: =RTD("cqg.rtd", ,"ContractData",A28, "T_CVol",, "T") -> 54864 | Q28: =IFERROR(O28/RTD("cqg.rtd",,"StudyData",A28, "MA", "InputChoice=Vol,MAType=Sim,Period=21", "MA","D","-1","all",,,,"T"),"") -> 0.09801743676 | R28: =XLF!Q11 -> https://finance.yahoo.com/quote/CINF
A29: =TRIM(XLF!O12) -> S.US.HIG | B29: News | C29: =RTD("cqg.rtd", ,"ContractData",A29, "LongDescription",, "T")&" ("&RIGHT(A29,LEN(A29)-5)&")" -> The Hartford Fincl Svcs Grp (HIG) | H29: =RTD("cqg.rtd", ,"ContractData",A29, "LastTradeToday",, "T") -> 49.08 | I29: =RTD("cqg.rtd", ,"ContractData",A29, "NetLastTradeToday",, "T") -> 0.03 | J29: =RTD("cqg.rtd", ,"ContractData",A29, "PerCentNetLastTrade",, "T")/100 -> 0.0006116207951 | K29: =I29/RTD("cqg.rtd",,"StudyData",A29, "ATR", "MaType=Sim,Period=10", "ATR","D","-1","ALL",,,"FALSE","T")/100 -> 0.0005514705882 | L29: =RTD("cqg.rtd", ,"ContractData",A29, "OPen",, "T") -> 49.06 | M29: =RTD("cqg.rtd", ,"ContractData", A29, "HIgh",, "T") -> 49.45 | N29: =RTD("cqg.rtd", ,"ContractData",A29, "LOw",, "T") -> 48.92 | O29: =RTD("cqg.rtd", ,"ContractData",A29, "T_CVol",, "T") -> 309062 | Q29: =IFERROR(O29/RTD("cqg.rtd",,"StudyData",A29, "MA", "InputChoice=Vol,MAType=Sim,Period=21", "MA","D","-1","all",,,,"T"),"") -> 0.1503159128 | R29: =XLF!Q12 -> https://finance.yahoo.com/quote/HIG
A30: =TRIM(XLF!O13) -> S.US.TROW | B30: News | C30: =RTD("cqg.rtd", ,"ContractData",A30, "LongDescription",, "T")&" ("&RIGHT(A30,LEN(A30)-5)&")" -> T Rowe Price Group Inc (TROW) | H30: =RTD("cqg.rtd", ,"ContractData",A30, "LastTradeToday",, "T") -> 69.82 | I30: =RTD("cqg.rtd", ,"ContractData",A30, "NetLastTradeToday",, "T") -> 0.04 | J30: =RTD("cqg.rtd", ,"ContractData",A30, "PerCentNetLastTrade",, "T")/100 -> 0.0005732301519 | K30: =I30/RTD("cqg.rtd",,"StudyData",A30, "ATR", "MaType=Sim,Period=10", "ATR","D","-1","ALL",,,"FALSE","T")/100 -> 0.000272851296 | L30: =RTD("cqg.rtd", ,"ContractData",A30, "OPen",, "T") -> 69.79 | M30: =RTD("cqg.rtd", ,"ContractData", A30, "HIgh",, "T") -> 70 | N30: =RTD("cqg.rtd", ,"ContractData",A30, "LOw",, "T") -> 69.6 | O30: =RTD("cqg.rtd", ,"ContractData",A30, "T_CVol",, "T") -> 258762 | Q30: =IFERROR(O30/RTD("cqg.rtd",,"StudyData",A30, "MA", "InputChoice=Vol,MAType=Sim,Period=21", "MA","D","-1","all",,,,"T"),"") -> 0.1431650013 | R30: =XLF!Q13 -> https://finance.yahoo.com/quote/TROW
A31: =TRIM(XLF!O14) -> S.US.MCO | B31: News | C31: =RTD("cqg.rtd", ,"ContractData",A31, "LongDescription",, "T")&" ("&RIGHT(A31,LEN(A31)-5)&")" -> Moodys Corp (MCO) | H31: =RTD("cqg.rtd", ,"ContractData",A31, "LastTradeToday",, "T") -> 116.8 | I31: =RTD("cqg.rtd", ,"ContractData",A31, "NetLastTradeToday",, "T") -> 0.04 | J31: =RTD("cqg.rtd", ,"ContractData",A31, "PerCentNetLastTrade",, "T")/100 -> 0.0003425830764 | K31: =I31/RTD("cqg.rtd",,"StudyData",A31, "ATR", "MaType=Sim,Period=10", "ATR","D","-1","ALL",,,"FALSE","T")/100 -> 0.0002978406552 | L31: =RTD("cqg.rtd", ,"ContractData",A31, "OPen",, "T") -> 117 | M31: =RTD("cqg.rtd", ,"ContractData", A31, "HIgh",, "T") -> 117.21 | N31: =RTD("cqg.rtd", ,"ContractData",A31, "LOw",, "T") -> 116.3 | O31: =RTD("cqg.rtd", ,"ContractData",A31, "T_CVol",, "T") -> 36760 | Q31: =IFERROR(O31/RTD("cqg.rtd",,"StudyData",A31, "MA", "InputChoice=Vol,MAType=Sim,Period=21", "MA","D","-1","all",,,,"T"),"") -> 0.0465501955 | R31: =XLF!Q14 -> https://finance.yahoo.com/quote/MCO
A32: =TRIM(XLF!O15) -> S.US.MMC | B32: News | C32: =RTD("cqg.rtd", ,"ContractData",A32, "LongDescription",, "T")&" ("&RIGHT(A32,LEN(A32)-5)&")" -> Marsh & McLennan Cos Inc (MMC) | H32: =RTD("cqg.rtd", ,"ContractData",A32, "LastTradeToday",, "T") -> 77.4 | I32: =RTD("cqg.rtd", ,"ContractData",A32, "NetLastTradeToday",, "T") -> 0.01 | J32: =RTD("cqg.rtd", ,"ContractData",A32, "PerCentNetLastTrade",, "T")/100 -> 0.0001292156609 | K32: =I32/RTD("cqg.rtd",,"StudyData",A32, "ATR", "MaType=Sim,Period=10", "ATR","D","-1","ALL",,,"FALSE","T")/100 -> 0.0001254705144 | L32: =RTD("cqg.rtd", ,"ContractData",A32, "OPen",, "T") -> 77.17 | M32: =RTD("cqg.rtd", ,"ContractData", A32, "HIgh",, "T") -> 77.85 | N32: =RTD("cqg.rtd", ,"ContractData",A32, "LOw",, "T") -> 77.17 | O32: =RTD("cqg.rtd", ,"ContractData",A32, "T_CVol",, "T") -> 339687 | Q32: =IFERROR(O32/RTD("cqg.rtd",,"StudyData",A32, "MA", "InputChoice=Vol,MAType=Sim,Period=21", "MA","D","-1","all",,,,"T"),"") -> 0.2169136216 | R32: =XLF!Q15 -> https://finance.yahoo.com/quote/MMC
C33: Bottom 15 Description | H33: Last | I33: NC | J33: %NC | K33: NC/ATR | L33: Open | M33: High | N33: Low | O33: Volume | Q33: Ratio
A34: =TRIM(XLF!O51) -> S.US.STI | B34: News | C34: =RTD("cqg.rtd", ,"ContractData",A34, "LongDescription",, "T")&" ("&RIGHT(A34,LEN(A34)-5)&")" -> SunTrust Banks Inc (STI) | H34: =RTD("cqg.rtd", ,"ContractData",A34, "LastTradeToday",, "T") -> 53.02 | I34: =RTD("cqg.rtd", ,"ContractData",A34, "NetLastTradeToday",, "T") -> -1.01 | J34: =RTD("cqg.rtd", ,"ContractData",A34, "PerCentNetLastTrade",, "T")/100 -> -0.01869331853 | K34: =I34/RTD("cqg.rtd",,"StudyData",A34, "ATR", "MaType=Sim,Period=10", "ATR","D","-1","ALL",,,"FALSE","T")/100 -> -0.009325946445 | L34: =RTD("cqg.rtd", ,"ContractData",A34, "OPen",, "T") -> 54.15 | M34: =RTD("cqg.rtd", ,"ContractData", A34, "HIgh",, "T") -> 54.18 | N34: =RTD("cqg.rtd", ,"ContractData",A34, "LOw",, "T") -> 52.69 | O34: =RTD("cqg.rtd", ,"ContractData",A34, "T_CVol",, "T") -> 585608 | Q34: =IFERROR(O34/RTD("cqg.rtd",,"StudyData",A34, "MA", "InputChoice=Vol,MAType=Sim,Period=21", "MA","D","-1","all",,,,"T"),"") -> 0.1812572783 | R34: =XLF!Q55 -> https://finance.yahoo.com/quote/LUK
A35: =TRIM(XLF!O52) -> S.US.RJF | B35: News | C35: =RTD("cqg.rtd", ,"ContractData",A35, "LongDescription",, "T")&" ("&RIGHT(A35,LEN(A35)-5)&")" -> Raymond James Fincl Inc (RJF) | H35: =RTD("cqg.rtd", ,"ContractData",A35, "LastTradeToday",, "T") -> 71.57 | I35: =RTD("cqg.rtd", ,"ContractData",A35, "NetLastTradeToday",, "T") -> -1.43 | J35: =RTD("cqg.rtd", ,"ContractData",A35, "PerCentNetLastTrade",, "T")/100 -> -0.0195890411 | K35: =I35/RTD("cqg.rtd",,"StudyData",A35, "ATR", "MaType=Sim,Period=10", "ATR","D","-1","ALL",,,"FALSE","T")/100 -> -0.00855774985 | L35: =RTD("cqg.rtd", ,"ContractData",A35, "OPen",, "T") -> 73.05 | M35: =RTD("cqg.rtd", ,"ContractData", A35, "HIgh",, "T") -> 73.05 | N35: =RTD("cqg.rtd", ,"ContractData",A35, "LOw",, "T") -> 71.35 | O35: =RTD("cqg.rtd", ,"ContractData",A35, "T_CVol",, "T") -> 29214 | Q35: =IFERROR(O35/RTD("cqg.rtd",,"StudyData",A35, "MA", "InputChoice=Vol,MAType=Sim,Period=21", "MA","D","-1","all",,,,"T"),"") -> 0.04467096726 | R35: =XLF!Q56 -> https://finance.yahoo.com/quote/RF
A36: =TRIM(XLF!O53) -> S.US.KEY | B36: News | C36: =RTD("cqg.rtd", ,"ContractData",A36, "LongDescription",, "T")&" ("&RIGHT(A36,LEN(A36)-5)&")" -> KeyCorp (KEY) | H36: =RTD("cqg.rtd", ,"ContractData",A36, "LastTradeToday",, "T") -> 17.48 | I36: =RTD("cqg.rtd", ,"ContractData",A36, "NetLastTradeToday",, "T") -> -0.35 | J36: =RTD("cqg.rtd", ,"ContractData",A36, "PerCentNetLastTrade",, "T")/100 -> -0.01962983735 | K36: =I36/RTD("cqg.rtd",,"StudyData",A36, "ATR", "MaType=Sim,Period=10", "ATR","D","-1","ALL",,,"FALSE","T")/100 -> -0.007882882883 | L36: =RTD("cqg.rtd", ,"ContractData",A36, "OPen",, "T") -> 17.84 | M36: =RTD("cqg.rtd", ,"ContractData", A36, "HIgh",, "T") -> 17.89 | N36: =RTD("cqg.rtd", ,"ContractData",A36, "LOw",, "T") -> 17.41 | O36: =RTD("cqg.rtd", ,"ContractData",A36, "T_CVol",, "T") -> 1193807 | Q36: =IFERROR(O36/RTD("cqg.rtd",,"StudyData",A36, "MA", "InputChoice=Vol,MAType=Sim,Period=21", "MA","D","-1","all",,,,"T"),"") -> 0.143742237 | R36: =XLF!Q57 -> https://finance.yahoo.com/quote/JPM
A37: =TRIM(XLF!O54) -> S.US.HBAN | B37: News | C37: =RTD("cqg.rtd", ,"ContractData",A37, "LongDescription",, "T")&" ("&RIGHT(A37,LEN(A37)-5)&")" -> Huntington Bancshrs Inc (HBAN) | H37: =RTD("cqg.rtd", ,"ContractData",A37, "LastTradeToday",, "T") -> 12.47 | I37: =RTD("cqg.rtd", ,"ContractData",A37, "NetLastTradeToday",, "T") -> -0.27 | J37: =RTD("cqg.rtd", ,"ContractData",A37, "PerCentNetLastTrade",, "T")/100 -> -0.02119309262 | K37: =I37/RTD("cqg.rtd",,"StudyData",A37, "ATR", "MaType=Sim,Period=10", "ATR","D","-1","ALL",,,"FALSE","T")/100 -> -0.009712230216 | L37: =RTD("cqg.rtd", ,"ContractData",A37, "OPen",, "T") -> 12.74 | M37: =RTD("cqg.rtd", ,"ContractData", A37, "HIgh",, "T") -> 12.81 | N37: =RTD("cqg.rtd", ,"ContractData",A37, "LOw",, "T") -> 12.45 | O37: =RTD("cqg.rtd", ,"ContractData",A37, "T_CVol",, "T") -> 1358281 | Q37: =IFERROR(O37/RTD("cqg.rtd",,"StudyData",A37, "MA", "InputChoice=Vol,MAType=Sim,Period=21", "MA","D","-1","all",,,,"T"),"") -> 0.1704801635 | R37: =XLF!Q58 -> https://finance.yahoo.com/quote/SYF
A38: =TRIM(XLF!O55) -> S.US.LUK | B38: News | C38: =RTD("cqg.rtd", ,"ContractData",A38, "LongDescription",, "T")&" ("&RIGHT(A38,LEN(A38)-5)&")" -> Leucadia National Corp (LUK) | H38: =RTD("cqg.rtd", ,"ContractData",A38, "LastTradeToday",, "T") -> 23.88 | I38: =RTD("cqg.rtd", ,"ContractData",A38, "NetLastTradeToday",, "T") -> -0.52 | J38: =RTD("cqg.rtd", ,"ContractData",A38, "PerCentNetLastTrade",, "T")/100 -> -0.02131147541 | K38: =I38/RTD("cqg.rtd",,"StudyData",A38, "ATR", "MaType=Sim,Period=10", "ATR","D","-1","ALL",,,"FALSE","T")/100 -> -0.01386666667 | L38: =RTD("cqg.rtd", ,"ContractData",A38, "OPen",, "T") -> 24.41 | M38: =RTD("cqg.rtd", ,"ContractData", A38, "HIgh",, "T") -> 24.49 | N38: =RTD("cqg.rtd", ,"ContractData",A38, "LOw",, "T") -> 23.8 | O38: =RTD("cqg.rtd", ,"ContractData",A38, "T_CVol",, "T") -> 253137 | Q38: =IFERROR(O38/RTD("cqg.rtd",,"StudyData",A38, "MA", "InputChoice=Vol,MAType=Sim,Period=21", "MA","D","-1","all",,,,"T"),"") -> 0.1771287151 | R38: =XLF!Q59 -> https://finance.yahoo.com/quote/SCHW
A39: =TRIM(XLF!O56) -> S.US.RF | B39: News | C39: =RTD("cqg.rtd", ,"ContractData",A39, "LongDescription",, "T")&" ("&RIGHT(A39,LEN(A39)-5)&")" -> Regions Financial Corp (RF) | H39: =RTD("cqg.rtd", ,"ContractData",A39, "LastTradeToday",, "T") -> 13.67 | I39: =RTD("cqg.rtd", ,"ContractData",A39, "NetLastTradeToday",, "T") -> -0.3 | J39: =RTD("cqg.rtd", ,"ContractData",A39, "PerCentNetLastTrade",, "T")/100 -> -0.0214745884 | K39: =I39/RTD("cqg.rtd",,"StudyData",A39, "ATR", "MaType=Sim,Period=10", "ATR","D","-1","ALL",,,"FALSE","T")/100 -> -0.008955223881 | L39: =RTD("cqg.rtd", ,"ContractData",A39, "OPen",, "T") -> 14.01 | M39: =RTD("cqg.rtd", ,"ContractData", A39, "HIgh",, "T") -> 14.03 | N39: =RTD("cqg.rtd", ,"ContractData",A39, "LOw",, "T") -> 13.6 | O39: =RTD("cqg.rtd", ,"ContractData",A39, "T_CVol",, "T") -> 3510692 | Q39: =IFERROR(O39/RTD("cqg.rtd",,"StudyData",A39, "MA", "InputChoice=Vol,MAType=Sim,Period=21", "MA","D","-1","all",,,,"T"),"") -> 0.2153151896 | R39: =XLF!Q60 -> https://finance.yahoo.com/quote/COF
A40: =TRIM(XLF!O57) -> S.US.JPM | B40: News | C40: =RTD("cqg.rtd", ,"ContractData",A40, "LongDescription",, "T")&" ("&RIGHT(A40,LEN(A40)-5)&")" -> JPMorgan Chase & Co. (JPM) | H40: =RTD("cqg.rtd", ,"ContractData",A40, "LastTradeToday",, "T") -> 82.08 | I40: =RTD("cqg.rtd", ,"ContractData",A40, "NetLastTradeToday",, "T") -> -1.82 | J40: =RTD("cqg.rtd", ,"ContractData",A40, "PerCentNetLastTrade",, "T")/100 -> -0.02169249106 | K40: =I40/RTD("cqg.rtd",,"StudyData",A40, "ATR", "MaType=Sim,Period=10", "ATR","D","-1","ALL",,,"FALSE","T")/100 -> -0.01328467153 | L40: =RTD("cqg.rtd", ,"ContractData",A40, "OPen",, "T") -> 83.73 | M40: =RTD("cqg.rtd", ,"ContractData", A40, "HIgh",, "T") -> 83.82 | N40: =RTD("cqg.rtd", ,"ContractData",A40, "LOw",, "T") -> 82.01 | O40: =RTD("cqg.rtd", ,"ContractData",A40, "T_CVol",, "T") -> 5961719 | Q40: =IFERROR(O40/RTD("cqg.rtd",,"StudyData",A40, "MA", "InputChoice=Vol,MAType=Sim,Period=21", "MA","D","-1","all",,,,"T"),"") -> 0.4904154499 | R40: =XLF!Q61 -> https://finance.yahoo.com/quote/MS
A41: =TRIM(XLF!O58) -> S.US.SYF | B41: News | C41: =RTD("cqg.rtd", ,"ContractData",A41, "LongDescription",, "T")&" ("&RIGHT(A41,LEN(A41)-5)&")" -> Synchrony Financial (SYF) | H41: =RTD("cqg.rtd", ,"ContractData",A41, "LastTradeToday",, "T") -> 26.5 | I41: =RTD("cqg.rtd", ,"ContractData",A41, "NetLastTradeToday",, "T") -> -0.6 | J41: =RTD("cqg.rtd", ,"ContractData",A41, "PerCentNetLastTrade",, "T")/100 -> -0.0221402214 | K41: =I41/RTD("cqg.rtd",,"StudyData",A41, "ATR", "MaType=Sim,Period=10", "ATR","D","-1","ALL",,,"FALSE","T")/100 -> -0.01077199282 | L41: =RTD("cqg.rtd", ,"ContractData",A41, "OPen",, "T") -> 27.1 | M41: =RTD("cqg.rtd", ,"ContractData", A41, "HIgh",, "T") -> 27.2 | N41: =RTD("cqg.rtd", ,"ContractData",A41, "LOw",, "T") -> 26.34 | O41: =RTD("cqg.rtd", ,"ContractData",A41, "T_CVol",, "T") -> 1547379 | Q41: =IFERROR(O41/RTD("cqg.rtd",,"StudyData",A41, "MA", "InputChoice=Vol,MAType=Sim,Period=21", "MA","D","-1","all",,,,"T"),"") -> 0.1220472908 | R41: =XLF!Q62 -> https://finance.yahoo.com/quote/C
A42: =TRIM(XLF!O59) -> S.US.SCHW | B42: News | C42: =RTD("cqg.rtd", ,"ContractData",A42, "LongDescription",, "T")&" ("&RIGHT(A42,LEN(A42)-5)&")" -> Charles Schwab Corp (SCHW) | H42: =RTD("cqg.rtd", ,"ContractData",A42, "LastTradeToday",, "T") -> 37.76 | I42: =RTD("cqg.rtd", ,"ContractData",A42, "NetLastTradeToday",, "T") -> -0.9 | J42: =RTD("cqg.rtd", ,"ContractData",A42, "PerCentNetLastTrade",, "T")/100 -> -0.02327987584 | K42: =I42/RTD("cqg.rtd",,"StudyData",A42, "ATR", "MaType=Sim,Period=10", "ATR","D","-1","ALL",,,"FALSE","T")/100 -> -0.01044083527 | L42: =RTD("cqg.rtd", ,"ContractData",A42, "OPen",, "T") -> 38.65 | M42: =RTD("cqg.rtd", ,"ContractData", A42, "HIgh",, "T") -> 38.88 | N42: =RTD("cqg.rtd", ,"ContractData",A42, "LOw",, "T") -> 37.63 | O42: =RTD("cqg.rtd", ,"ContractData",A42, "T_CVol",, "T") -> 1324051 | Q42: =IFERROR(O42/RTD("cqg.rtd",,"StudyData",A42, "MA", "InputChoice=Vol,MAType=Sim,Period=21", "MA","D","-1","all",,,,"T"),"") -> 0.1958728564 | R42: =XLF!Q63 -> https://finance.yahoo.com/quote/BAC
A43: =TRIM(XLF!O60) -> S.US.COF | B43: News | C43: =RTD("cqg.rtd", ,"ContractData",A43, "LongDescription",, "T")&" ("&RIGHT(A43,LEN(A43)-5)&")" -> Capital One Financl Corp (COF) | H43: =RTD("cqg.rtd", ,"ContractData",A43, "LastTradeToday",, "T") -> 76.39 | I43: =RTD("cqg.rtd", ,"ContractData",A43, "NetLastTradeToday",, "T") -> -1.89 | J43: =RTD("cqg.rtd", ,"ContractData",A43, "PerCentNetLastTrade",, "T")/100 -> -0.02414409811 | K43: =I43/RTD("cqg.rtd",,"StudyData",A43, "ATR", "MaType=Sim,Period=10", "ATR","D","-1","ALL",,,"FALSE","T")/100 -> -0.01279620853 | L43: =RTD("cqg.rtd", ,"ContractData",A43, "OPen",, "T") -> 78.39 | M43: =RTD("cqg.rtd", ,"ContractData", A43, "HIgh",, "T") -> 78.39 | N43: =RTD("cqg.rtd", ,"ContractData",A43, "LOw",, "T") -> 76.05 | O43: =RTD("cqg.rtd", ,"ContractData",A43, "T_CVol",, "T") -> 575183 | Q43: =IFERROR(O43/RTD("cqg.rtd",,"StudyData",A43, "MA", "InputChoice=Vol,MAType=Sim,Period=21", "MA","D","-1","all",,,,"T"),"") -> 0.2051823146 | R43: =XLF!Q64 -> https://finance.yahoo.com/quote/NAVI
A44: =TRIM(XLF!O61) -> S.US.MS | B44: News | C44: =RTD("cqg.rtd", ,"ContractData",A44, "LongDescription",, "T")&" ("&RIGHT(A44,LEN(A44)-5)&")" -> Morgan Stanley (MS) | H44: =RTD("cqg.rtd", ,"ContractData",A44, "LastTradeToday",, "T") -> 41.23 | I44: =RTD("cqg.rtd", ,"ContractData",A44, "NetLastTradeToday",, "T") -> -1.05 | J44: =RTD("cqg.rtd", ,"ContractData",A44, "PerCentNetLastTrade",, "T")/100 -> -0.02483443709 | K44: =I44/RTD("cqg.rtd",,"StudyData",A44, "ATR", "MaType=Sim,Period=10", "ATR","D","-1","ALL",,,"FALSE","T")/100 -> -0.01118210863 | L44: =RTD("cqg.rtd", ,"ContractData",A44, "OPen",, "T") -> 42.19 | M44: =RTD("cqg.rtd", ,"ContractData", A44, "HIgh",, "T") -> 42.19 | N44: =RTD("cqg.rtd", ,"ContractData",A44, "LOw",, "T") -> 41.07 | O44: =RTD("cqg.rtd", ,"ContractData",A44, "T_CVol",, "T") -> 2315629 | Q44: =IFERROR(O44/RTD("cqg.rtd",,"StudyData",A44, "MA", "InputChoice=Vol,MAType=Sim,Period=21", "MA","D","-1","all",,,,"T"),"") -> 0.2796873104 | R44: =XLF!Q65 -> https://finance.yahoo.com/quote/GS
A45: =TRIM(XLF!O62) -> S.US.C | B45: News | C45: =RTD("cqg.rtd", ,"ContractData",A45, "LongDescription",, "T")&" ("&RIGHT(A45,LEN(A45)-5)&")" -> Citigroup Inc (C) | H45: =RTD("cqg.rtd", ,"ContractData",A45, "LastTradeToday",, "T") -> 60.09 | I45: =RTD("cqg.rtd", ,"ContractData",A45, "NetLastTradeToday",, "T") -> -1.55 | J45: =RTD("cqg.rtd", ,"ContractData",A45, "PerCentNetLastTrade",, "T")/100 -> -0.02514600909 | K45: =I45/RTD("cqg.rtd",,"StudyData",A45, "ATR", "MaType=Sim,Period=10", "ATR","D","-1","ALL",,,"FALSE","T")/100 -> -0.01272577997 | L45: =RTD("cqg.rtd", ,"ContractData",A45, "OPen",, "T") -> 61.59 | M45: =RTD("cqg.rtd", ,"ContractData", A45, "HIgh",, "T") -> 61.6 | N45: =RTD("cqg.rtd", ,"ContractData",A45, "LOw",, "T") -> 59.87 | O45: =RTD("cqg.rtd", ,"ContractData",A45, "T_CVol",, "T") -> 5129820 | Q45: =IFERROR(O45/RTD("cqg.rtd",,"StudyData",A45, "MA", "InputChoice=Vol,MAType=Sim,Period=21", "MA","D","-1","all",,,,"T"),"") -> 0.3368125364 | R45: =XLF!Q66 -> 0
A46: =TRIM(XLF!O63) -> S.US.BAC | B46: News | C46: =RTD("cqg.rtd", ,"ContractData",A46, "LongDescription",, "T")&" ("&RIGHT(A46,LEN(A46)-5)&")" -> Bank of America Corp (BAC) | H46: =RTD("cqg.rtd", ,"ContractData",A46, "LastTradeToday",, "T") -> 22.17 | I46: =RTD("cqg.rtd", ,"ContractData",A46, "NetLastTradeToday",, "T") -> -0.74 | J46: =RTD("cqg.rtd", ,"ContractData",A46, "PerCentNetLastTrade",, "T")/100 -> -0.03230030554 | K46: =I46/RTD("cqg.rtd",,"StudyData",A46, "ATR", "MaType=Sim,Period=10", "ATR","D","-1","ALL",,,"FALSE","T")/100 -> -0.014453125 | L46: =RTD("cqg.rtd", ,"ContractData",A46, "OPen",, "T") -> 22.78 | M46: =RTD("cqg.rtd", ,"ContractData", A46, "HIgh",, "T") -> 22.8 | N46: =RTD("cqg.rtd", ,"ContractData",A46, "LOw",, "T") -> 22.09 | O46: =RTD("cqg.rtd", ,"ContractData",A46, "T_CVol",, "T") -> 38982102 | Q46: =IFERROR(O46/RTD("cqg.rtd",,"StudyData",A46, "MA", "InputChoice=Vol,MAType=Sim,Period=21", "MA","D","-1","all",,,,"T"),"") -> 0.5466843702 | R46: =XLF!Q67 -> 0
A47: =TRIM(XLF!O64) -> S.US.NAVI | B47: News | C47: =RTD("cqg.rtd", ,"ContractData",A47, "LongDescription",, "T")&" ("&RIGHT(A47,LEN(A47)-5)&")" -> Navient Corporation (NAVI) | H47: =RTD("cqg.rtd", ,"ContractData",A47, "LastTradeToday",, "T") -> 14.16 | I47: =RTD("cqg.rtd", ,"ContractData",A47, "NetLastTradeToday",, "T") -> -0.52 | J47: =RTD("cqg.rtd", ,"ContractData",A47, "PerCentNetLastTrade",, "T")/100 -> -0.03542234332 | K47: =I47/RTD("cqg.rtd",,"StudyData",A47, "ATR", "MaType=Sim,Period=10", "ATR","D","-1","ALL",,,"FALSE","T")/100 -> -0.01379310345 | L47: =RTD("cqg.rtd", ,"ContractData",A47, "OPen",, "T") -> 14.6 | M47: =RTD("cqg.rtd", ,"ContractData", A47, "HIgh",, "T") -> 14.6 | N47: =RTD("cqg.rtd", ,"ContractData",A47, "LOw",, "T") -> 14.06 | O47: =RTD("cqg.rtd", ,"ContractData",A47, "T_CVol",, "T") -> 870874 | Q47: =IFERROR(O47/RTD("cqg.rtd",,"StudyData",A47, "MA", "InputChoice=Vol,MAType=Sim,Period=21", "MA","D","-1","all",,,,"T"),"") -> 0.3587235714 | R47: =XLF!Q68 -> 0
A48: =TRIM(XLF!O65) -> S.US.GS | B48: News | C48: =RTD("cqg.rtd", ,"ContractData",A48, "LongDescription",, "T")&" ("&RIGHT(A48,LEN(A48)-5)&")" -> Goldman Sachs Group (GS) | H48: =RTD("cqg.rtd", ,"ContractData",A48, "LastTradeToday",, "T") -> 210.56 | I48: =RTD("cqg.rtd", ,"ContractData",A48, "NetLastTradeToday",, "T") -> -7.86 | J48: =RTD("cqg.rtd", ,"ContractData",A48, "PerCentNetLastTrade",, "T")/100 -> -0.03598571559 | K48: =I48/RTD("cqg.rtd",,"StudyData",A48, "ATR", "MaType=Sim,Period=10", "ATR","D","-1","ALL",,,"FALSE","T")/100 -> -0.01650220449 | L48: =RTD("cqg.rtd", ,"ContractData",A48, "OPen",, "T") -> 218.24 | M48: =RTD("cqg.rtd", ,"ContractData", A48, "HIgh",, "T") -> 218.3 | N48: =RTD("cqg.rtd", ,"ContractData",A48, "LOw",, "T") -> 209.62 | O48: =RTD("cqg.rtd", ,"ContractData",A48, "T_CVol",, "T") -> 2274998 | Q48: =IFERROR(O48/RTD("cqg.rtd",,"StudyData",A48, "MA", "InputChoice=Vol,MAType=Sim,Period=21", "MA","D","-1","all",,,,"T"),"") -> 0.7532020219 | R48: =XLF!Q69 -> 0
C49: CQG Inc., Copyright © 2017 | G49: Designed by Thom Hartle | J49: Standard & Poor's®, S&P® and SPDR® are registered trademarks of Standard & Poor’s Financial Services LLC. | Z49: =XLF!AB70 -> 0.2307692308 | AA49: of the stocks in the ETF are higher today

Sheet XLF (hidden)
A1: AFLAC Inc | B1: AFL | C1: ="S.US."&B1 -> S.US.AFL | D1: =RTD("cqg.rtd", ,"ContractData",C1, "LongDescription",, "T") -> AFLAC Inc | E1: =RTD("cqg.rtd", ,"ContractData",C1, "Open",, "T") -> 75.14 | F1: =RTD("cqg.rtd", ,"ContractData",C1, "High",, "T") -> 75.16 | G1: =RTD("cqg.rtd", ,"ContractData",C1, "Low",, "T") -> 74.86 | H1: =RTD("cqg.rtd", ,"ContractData",C1, "LastTradeToday",, "T") -> 75.02 | I1: =RTD("cqg.rtd", ,"ContractData",C1, "NetLastTradeToday",, "T") -> -0.12 | J1: =RTD("cqg.rtd", ,"ContractData",C1, "PerCentNetLastTrade",, "T")/100 -> -0.001597018898 | K1: =RTD("cqg.rtd", ,"ContractData", C1, "T_CVol",, "T") -> 254270 | L1: 1 | M1: =RANK($J1,$J$1:J$65)+COUNTIF($J$1:J1,J1)-1 -> 19 | N1: =C1 -> S.US.AFL | O1: =VLOOKUP($L1,$M$1:$N$65,2,FALSE) -> S.US.SPGI | P1: =RTD("cqg.rtd", ,"ContractData",O1, "PerCentNetLastTrade",, "T")/100 -> 0.003834954904 | Q1: ="https://finance.yahoo.com/quote/"&RIGHT(O1,(LEN(O1)-5)) -> https://finance.yahoo.com/quote/SPGI | S1: =IF(P1>=0,P1,NA()) -> 0.003834954904 | T1: =IF(P1>=0,NA(),-1*P1) ->  | V1: =RTD("cqg.rtd", ,"ContractData",O1, "LongDescription",, "T") -> S&P Global Inc. | Y1: =IFERROR(S1,P1) -> 0.003834954904 | AA1: =IF(S1="NA()",0,1) -> 1 | AB1: =IFERROR(AA1,0) -> 1 | AD1: =IFERROR(S1,"") -> 0.003834954904 | AE1: =IFERROR(T1,"") ->  | AF1: =IF(AE1="","",Y1) -> 
A2: American Intl Group Inc | B2: AIG | C2: ="S.US."&B2 -> S.US.AIG | D2: =RTD("cqg.rtd", ,"ContractData",C2, "LongDescription",, "T") -> American Intl Group Inc | E2: =RTD("cqg.rtd", ,"ContractData",C2, "Open",, "T") -> 64.19 | F2: =RTD("cqg.rtd", ,"ContractData",C2, "High",, "T") -> 64.19 | G2: =RTD("cqg.rtd", ,"ContractData",C2, "Low",, "T") -> 63.53 | H2: =RTD("cqg.rtd", ,"ContractData",C2, "LastTradeToday",, "T") -> 63.8 | I2: =RTD("cqg.rtd", ,"ContractData",C2, "NetLastTradeToday",, "T") -> -0.3 | J2: =RTD("cqg.rtd", ,"ContractData",C2, "PerCentNetLastTrade",, "T")/100 -> -0.004680187207 | K2: =RTD("cqg.rtd", ,"ContractData", C2, "T_CVol",, "T") -> 765022 | L2: =L1+1 -> 2 | M2: =RANK($J2,$J$1:J$65)+COUNTIF($J$1:J2,J2)-1 -> 23 | N2: =C2 -> S.US.AIG | O2: =VLOOKUP($L2,$M$1:$N$65,2,FALSE) -> S.US.CB | P2: =RTD("cqg.rtd", ,"ContractData",O2, "PerCentNetLastTrade",, "T")/100 -> 0.003523856509 | Q2: ="https://finance.yahoo.com/quote/"&RIGHT(O2,(LEN(O2)-5)) -> https://finance.yahoo.com/quote/CB | S2: =IF(P2>=0,P2,NA()) -> 0.003523856509 | T2: =IF(P2>=0,NA(),-1*P2) ->  | V2: =RTD("cqg.rtd", ,"ContractData",O2, "LongDescription",, "T") -> Chubb Corporation | Y2: =IFERROR(S2,P2) -> 0.003523856509 | AA2: =IF(S2="NA()",0,1) -> 1 | AB2: =IFERROR(AA2,0) -> 1 | AD2: =IFERROR(S2,"") -> 0.003523856509 | AE2: =IFERROR(T2,"") ->  | AF2: =IF(AE2="","",Y2) -> 
A3: Assurant Inc | B3: AIZ | C3: S.US.AIZ | D3: =RTD("cqg.rtd", ,"ContractData",C3, "LongDescription",, "T") -> Assurant Inc | E3: =RTD("cqg.rtd", ,"ContractData",C3, "Open",, "T") -> 98.64 | F3: =RTD("cqg.rtd", ,"ContractData",C3, "High",, "T") -> 98.64 | G3: =RTD("cqg.rtd", ,"ContractData",C3, "Low",, "T") -> 97.47 | H3: =RTD("cqg.rtd", ,"ContractData",C3, "LastTradeToday",, "T") -> 97.65 | I3: =RTD("cqg.rtd", ,"ContractData",C3, "NetLastTradeToday",, "T") -> -0.9 | J3: =RTD("cqg.rtd", ,"ContractData",C3, "PerCentNetLastTrade",, "T")/100 -> -0.009132420091 | K3: =RTD("cqg.rtd", ,"ContractData", C3, "T_CVol",, "T") -> 29964 | L3: =L2+1 -> 3 | M3: =RANK($J3,$J$1:J$65)+COUNTIF($J$1:J3,J3)-1 -> 31 | N3: S.US.AIZ | O3: S.US.ALL | P3: =RTD("cqg.rtd", ,"ContractData",O3, "PerCentNetLastTrade",, "T")/100 -> 0.002906976744 | Q3: https://finance.yahoo.com/quote/ALL | S3: 0.002906976744 | V3: =RTD("cqg.rtd", ,"ContractData",O3, "LongDescription",, "T") -> Allstate Corporation | Y3: 0.002906976744 | AA3: 1 | AB3: 1 | AD3: 0.002906976744
A4: Arthur J Gallagher Co | B4: AJG | C4: S.US.AJG | D4: =RTD("cqg.rtd", ,"ContractData",C4, "LongDescription",, "T") -> Arthur J Gallagher Co | E4: =RTD("cqg.rtd", ,"ContractData",C4, "Open",, "T") -> 56.81 | F4: =RTD("cqg.rtd", ,"ContractData",C4, "High",, "T") -> 56.94 | G4: =RTD("cqg.rtd", ,"ContractData",C4, "Low",, "T") -> 56.36 | H4: =RTD("cqg.rtd", ,"ContractData",C4, "LastTradeToday",, "T") -> 56.67 | I4: =RTD("cqg.rtd", ,"ContractData",C4, "NetLastTradeToday",, "T") -> -0.3 | J4: =RTD("cqg.rtd", ,"ContractData",C4, "PerCentNetLastTrade",, "T")/100 -> -0.005265929437 | K4: =RTD("cqg.rtd", ,"ContractData", C4, "T_CVol",, "T") -> 66604 | L4: 4 | M4: =RANK($J4,$J$1:J$65)+COUNTIF($J$1:J4,J4)-1 -> 25 | N4: S.US.AJG | O4: S.US.AON | P4: =RTD("cqg.rtd", ,"ContractData",O4, "PerCentNetLastTrade",, "T")/100 -> 0.002677683421 | Q4: https://finance.yahoo.com/quote/AON | S4: 0.002677683421 | V4: =RTD("cqg.rtd", ,"ContractData",O4, "LongDescription",, "T") -> AON Corporation | Y4: 0.002677683421 | AA4: 1 | AB4: 1 | AD4: 0.002677683421
A5: Allstate Corporation | B5: ALL | C5: S.US.ALL | D5: =RTD("cqg.rtd", ,"ContractData",C5, "LongDescription",, "T") -> Allstate Corporation | E5: =RTD("cqg.rtd", ,"ContractData",C5, "Open",, "T") -> 86.15 | F5: =RTD("cqg.rtd", ,"ContractData",C5, "High",, "T") -> 86.35 | G5: =RTD("cqg.rtd", ,"ContractData",C5, "Low",, "T") -> 85.93 | H5: =RTD("cqg.rtd", ,"ContractData",C5, "LastTradeToday",, "T") -> 86.25 | I5: =RTD("cqg.rtd", ,"ContractData",C5, "NetLastTradeToday",, "T") -> 0.25 | J5: =RTD("cqg.rtd", ,"ContractData",C5, "PerCentNetLastTrade",, "T")/100 -> 0.002906976744 | K5: =RTD("cqg.rtd", ,"ContractData", C5, "T_CVol",, "T") -> 192927 | L5: 5 | M5: =RANK($J5,$J$1:J$65)+COUNTIF($J$1:J5,J5)-1 -> 3 | N5: S.US.ALL | O5: S.US.TRV | P5: =RTD("cqg.rtd", ,"ContractData",O5, "PerCentNetLastTrade",, "T")/100 -> 0.001778065142 | Q5: https://finance.yahoo.com/quote/TRV | S5: 0.001778065142 | V5: =RTD("cqg.rtd", ,"ContractData",O5, "LongDescription",, "T") -> Travelers Companies, Inc | Y5: 0.001778065142 | AA5: 1 | AB5: 1 | AD5: 0.001778065142
A6: Affiliated Managers Grp Inc | B6: AMG | C6: S.US.AMG | D6: =RTD("cqg.rtd", ,"ContractData",C6, "LongDescription",, "T") -> Affiliated Managers Grp Inc | E6: =RTD("cqg.rtd", ,"ContractData",C6, "Open",, "T") -> 153.33 | F6: =RTD("cqg.rtd", ,"ContractData",C6, "High",, "T") -> 153.49 | G6: =RTD("cqg.rtd", ,"ContractData",C6, "Low",, "T") -> 152.16 | H6: =RTD("cqg.rtd", ,"ContractData",C6, "LastTradeToday",, "T") -> 152.66 | I6: =RTD("cqg.rtd", ,"ContractData",C6, "NetLastTradeToday",, "T") -> -0.36 | J6: =RTD("cqg.rtd", ,"ContractData",C6, "PerCentNetLastTrade",, "T")/100 -> -0.002352633643 | K6: =RTD("cqg.rtd", ,"ContractData", C6, "T_CVol",, "T") -> 125436 | L6: 6 | M6: =RANK($J6,$J$1:J$65)+COUNTIF($J$1:J6,J6)-1 -> 20 | N6: S.US.AMG | O6: S.US.NDAQ | P6: =RTD("cqg.rtd", ,"ContractData",O6, "PerCentNetLastTrade",, "T")/100 -> 0.001334915455 | Q6: https://finance.yahoo.com/quote/NDAQ | S6: 0.001334915455 | V6: =RTD("cqg.rtd", ,"ContractData",O6, "LongDescription",, "T") -> Nasdaq, Inc. | Y6: 0.001334915455 | AA6: 1 | AB6: 1 | AD6: 0.001334915455
A7: Ameriprise Financial Inc | B7: AMP | C7: S.US.AMP | D7: =RTD("cqg.rtd", ,"ContractData",C7, "LongDescription",, "T") -> Ameriprise Financial Inc | E7: =RTD("cqg.rtd", ,"ContractData",C7, "Open",, "T") -> 121.08 | F7: =RTD("cqg.rtd", ,"ContractData",C7, "High",, "T") -> 121.32 | G7: =RTD("cqg.rtd", ,"ContractData",C7, "Low",, "T") -> 118.84 | H7: =RTD("cqg.rtd", ,"ContractData",C7, "LastTradeToday",, "T") -> 119.64 | I7: =RTD("cqg.rtd", ,"ContractData",C7, "NetLastTradeToday",, "T") -> -1.46 | J7: =RTD("cqg.rtd", ,"ContractData",C7, "PerCentNetLastTrade",, "T")/100 -> -0.01205615194 | K7: =RTD("cqg.rtd", ,"ContractData", C7, "T_CVol",, "T") -> 194730 | L7: 7 | M7: =RANK($J7,$J$1:J$65)+COUNTIF($J$1:J7,J7)-1 -> 38 | N7: S.US.AMP | O7: S.US.PGR | P7: =RTD("cqg.rtd", ,"ContractData",O7, "PerCentNetLastTrade",, "T")/100 -> 0.001184272856 | Q7: https://finance.yahoo.com/quote/PGR | S7: 0.001184272856 | V7: =RTD("cqg.rtd", ,"ContractData",O7, "LongDescription",, "T") -> Progressive Corp | Y7: 0.001184272856 | AA7: 1 | AB7: 1 | AD7: 0.001184272856
A8: AON Corporation | B8: AON | C8: S.US.AON | D8: =RTD("cqg.rtd", ,"ContractData",C8, "LongDescription",, "T") -> AON Corporation | E8: =RTD("cqg.rtd", ,"ContractData",C8, "Open",, "T") -> 131.11 | F8: =RTD("cqg.rtd", ,"ContractData",C8, "High",, "T") -> 131.62 | G8: =RTD("cqg.rtd", ,"ContractData",C8, "Low",, "T") -> 130.8 | H8: =RTD("cqg.rtd", ,"ContractData",C8, "LastTradeToday",, "T") -> 131.06 | I8: =RTD("cqg.rtd", ,"ContractData",C8, "NetLastTradeToday",, "T") -> 0.35 | J8: =RTD("cqg.rtd", ,"ContractData",C8, "PerCentNetLastTrade",, "T")/100 -> 0.002677683421 | K8: =RTD("cqg.rtd", ,"ContractData", C8, "T_CVol",, "T") -> 115980 | L8: 8 | M8: =RANK($J8,$J$1:J$65)+COUNTIF($J$1:J8,J8)-1 -> 4 | N8: S.US.AON | O8: S.US.WLTW | P8: =RTD("cqg.rtd", ,"ContractData",O8, "PerCentNetLastTrade",, "T")/100 -> 0.001034197463 | Q8: https://finance.yahoo.com/quote/WLTW | S8: 0.001034197463 | V8: =RTD("cqg.rtd", ,"ContractData",O8, "LongDescription",, "T") -> Willis Towers Watson | Y8: 0.001034197463 | AA8: 1 | AB8: 1 | AD8: 0.001034197463
A9: American Express Co | B9: AXP | C9: S.US.AXP | D9: =RTD("cqg.rtd", ,"ContractData",C9, "LongDescription",, "T") -> American Express Co | E9: =RTD("cqg.rtd", ,"ContractData",C9, "Open",, "T") -> 77.09 | F9: =RTD("cqg.rtd", ,"ContractData",C9, "High",, "T") -> 77.11 | G9: =RTD("cqg.rtd", ,"ContractData",C9, "Low",, "T") -> 75.98 | H9: =RTD("cqg.rtd", ,"ContractData",C9, "LastTradeToday",, "T") -> 76.28 | I9: =RTD("cqg.rtd", ,"ContractData",C9, "NetLastTradeToday",, "T") -> -0.81 | J9: =RTD("cqg.rtd", ,"ContractData",C9, "PerCentNetLastTrade",, "T")/100 -> -0.01050719938 | K9: =RTD("cqg.rtd", ,"ContractData", C9, "T_CVol",, "T") -> 464201 | L9: 9 | M9: =RANK($J9,$J$1:J$65)+COUNTIF($J$1:J9,J9)-1 -> 33 | N9: S.US.AXP | O9: S.US.ICE | P9: =RTD("cqg.rtd", ,"ContractData",O9, "PerCentNetLastTrade",, "T")/100 -> 0.0009973404255 | Q9: https://finance.yahoo.com/quote/ICE | S9: 0.0009973404255 | V9: =RTD("cqg.rtd", ,"ContractData",O9, "LongDescription",, "T") -> Intercontinental, Inc. | Y9: 0.0009973404255 | AA9: 1 | AB9: 1 | AD9: 0.0009973404255
A10: Bank of America Corp | B10: BAC | C10: S.US.BAC | D10: =RTD("cqg.rtd", ,"ContractData",C10, "LongDescription",, "T") -> Bank of America Corp | E10: =RTD("cqg.rtd", ,"ContractData",C10, "Open",, "T") -> 22.78 | F10: =RTD("cqg.rtd", ,"ContractData",C10, "High",, "T") -> 22.8 | G10: =RTD("cqg.rtd", ,"ContractData",C10, "Low",, "T") -> 22.09 | H10: =RTD("cqg.rtd", ,"ContractData",C10, "LastTradeToday",, "T") -> 22.17 | I10: =RTD("cqg.rtd", ,"ContractData",C10, "NetLastTradeToday",, "T") -> -0.74 | J10: =RTD("cqg.rtd", ,"ContractData",C10, "PerCentNetLastTrade",, "T")/100 -> -0.03230030554 | K10: =RTD("cqg.rtd", ,"ContractData", C10, "T_CVol",, "T") -> 38982102 | L10: 10 | M10: =RANK($J10,$J$1:J$65)+COUNTIF($J$1:J10,J10)-1 -> 63 | N10: S.US.BAC | O10: S.US.XL | P10: =RTD("cqg.rtd", ,"ContractData",O10, "PerCentNetLastTrade",, "T")/100 -> 0.0009216589862 | Q10: https://finance.yahoo.com/quote/XL | S10: 0.0009216589862 | V10: =RTD("cqg.rtd", ,"ContractData",O10, "LongDescription",, "T") -> XL Group plc | Y10: 0.0009216589862 | AA10: 1 | AB10: 1 | AD10: 0.0009216589862
A11: Brent Crude Penultimate Financial TAS, Jul 17 | B11: BBT | C11: S.US.BBT | D11: =RTD("cqg.rtd", ,"ContractData",C11, "LongDescription",, "T") -> BB&T Corp | E11: =RTD("cqg.rtd", ,"ContractData",C11, "Open",, "T") -> 42.11 | F11: =RTD("cqg.rtd", ,"ContractData",C11, "High",, "T") -> 42.15 | G11: =RTD("cqg.rtd", ,"ContractData",C11, "Low",, "T") -> 41.17 | H11: =RTD("cqg.rtd", ,"ContractData",C11, "LastTradeToday",, "T") -> 41.36 | I11: =RTD("cqg.rtd", ,"ContractData",C11, "NetLastTradeToday",, "T") -> -0.71 | J11: =RTD("cqg.rtd", ,"ContractData",C11, "PerCentNetLastTrade",, "T")/100 -> -0.01687663418 | K11: =RTD("cqg.rtd", ,"ContractData", C11, "T_CVol",, "T") -> 547582 | L11: 11 | M11: =RANK($J11,$J$1:J$65)+COUNTIF($J$1:J11,J11)-1 -> 47 | N11: S.US.BBT | O11: S.US.CINF | P11: =RTD("cqg.rtd", ,"ContractData",O11, "PerCentNetLastTrade",, "T")/100 -> 0.0008629368618 | Q11: https://finance.yahoo.com/quote/CINF | S11: 0.0008629368618 | V11: =RTD("cqg.rtd", ,"ContractData",O11, "LongDescription",, "T") -> Cincinnati Fincl Corp | Y11: 0.0008629368618 | AA11: 1 | AB11: 1 | AD11: 0.0008629368618
A12: Franklin Resources Inc | B12: BEN | C12: S.US.BEN | D12: =RTD("cqg.rtd", ,"ContractData",C12, "LongDescription",, "T") -> Franklin Resources Inc | E12: =RTD("cqg.rtd", ,"ContractData",C12, "Open",, "T") -> 41.7 | F12: =RTD("cqg.rtd", ,"ContractData",C12, "High",, "T") -> 41.7 | G12: =RTD("cqg.rtd", ,"ContractData",C12, "Low",, "T") -> 41.2 | H12: =RTD("cqg.rtd", ,"ContractData",C12, "LastTradeToday",, "T") -> 41.28 | I12: =RTD("cqg.rtd", ,"ContractData",C12, "NetLastTradeToday",, "T") -> -0.33 | J12: =RTD("cqg.rtd", ,"ContractData",C12, "PerCentNetLastTrade",, "T")/100 -> -0.007930785869 | K12: =RTD("cqg.rtd", ,"ContractData", C12, "T_CVol",, "T") -> 233665 | L12: 12 | M12: =RANK($J12,$J$1:J$65)+COUNTIF($J$1:J12,J12)-1 -> 29 | N12: S.US.BEN | O12: S.US.HIG | P12: =RTD("cqg.rtd", ,"ContractData",O12, "PerCentNetLastTrade",, "T")/100 -> 0.0006116207951 | Q12: https://finance.yahoo.com/quote/HIG | S12: 0.0006116207951 | V12: =RTD("cqg.rtd", ,"ContractData",O12, "LongDescription",, "T") -> The Hartford Fincl Svcs Grp | Y12: 0.0006116207951 | AA12: 1 | AB12: 1 | AD12: 0.0006116207951
A13: WTI-Brent Financial, May 17 | B13: BK | C13: S.US.BK | D13: =RTD("cqg.rtd", ,"ContractData",C13, "LongDescription",, "T") -> Bank of New York Co Inc | E13: =RTD("cqg.rtd", ,"ContractData",C13, "Open",, "T") -> 47.1 | F13: =RTD("cqg.rtd", ,"ContractData",C13, "High",, "T") -> 47.2 | G13: =RTD("cqg.rtd", ,"ContractData",C13, "Low",, "T") -> 46.59 | H13: =RTD("cqg.rtd", ,"ContractData",C13, "LastTradeToday",, "T") -> 46.87 | I13: =RTD("cqg.rtd", ,"ContractData",C13, "NetLastTradeToday",, "T") -> -0.23 | J13: =RTD("cqg.rtd", ,"ContractData",C13, "PerCentNetLastTrade",, "T")/100 -> -0.004883227176 | K13: =RTD("cqg.rtd", ,"ContractData", C13, "T_CVol",, "T") -> 1222272 | L13: 13 | M13: =RANK($J13,$J$1:J$65)+COUNTIF($J$1:J13,J13)-1 -> 24 | N13: S.US.BK | O13: S.US.TROW | P13: =RTD("cqg.rtd", ,"ContractData",O13, "PerCentNetLastTrade",, "T")/100 -> 0.0005732301519 | Q13: https://finance.yahoo.com/quote/TROW | S13: 0.0005732301519 | V13: =RTD("cqg.rtd", ,"ContractData",O13, "LongDescription",, "T") -> T Rowe Price Group Inc | Y13: 0.0005732301519 | AA13: 1 | AB13: 1 | AD13: 0.0005732301519
A14: Blackrock Inc | B14: BLK | C14: S.US.BLK | D14: =RTD("cqg.rtd", ,"ContractData",C14, "LongDescription",, "T") -> Blackrock Inc | E14: =RTD("cqg.rtd", ,"ContractData",C14, "Open",, "T") -> 408 | F14: =RTD("cqg.rtd", ,"ContractData",C14, "High",, "T") -> 409.58 | G14: =RTD("cqg.rtd", ,"ContractData",C14, "Low",, "T") -> 406.11 | H14: =RTD("cqg.rtd", ,"ContractData",C14, "LastTradeToday",, "T") -> 406.55 | I14: =RTD("cqg.rtd", ,"ContractData",C14, "NetLastTradeToday",, "T") -> -0.27 | J14: =RTD("cqg.rtd", ,"ContractData",C14, "PerCentNetLastTrade",, "T")/100 -> -0.0006636841847 | K14: =RTD("cqg.rtd", ,"ContractData", C14, "T_CVol",, "T") -> 97718 | L14: 14 | M14: =RANK($J14,$J$1:J$65)+COUNTIF($J$1:J14,J14)-1 -> 16 | N14: S.US.BLK | O14: S.US.MCO | P14: =RTD("cqg.rtd", ,"ContractData",O14, "PerCentNetLastTrade",, "T")/100 -> 0.0003425830764 | Q14: https://finance.yahoo.com/quote/MCO | S14: 0.0003425830764 | V14: =RTD("cqg.rtd", ,"ContractData",O14, "LongDescription",, "T") -> Moodys Corp | Y14: 0.0003425830764 | AA14: 1 | AB14: 1 | AD14: 0.0003425830764
A15: Berkshire Hathaway Inc. ClsB | B15: BRKB | C15: S.US.BRKB | D15: =RTD("cqg.rtd", ,"ContractData",C15, "LongDescription",, "T") -> Berkshire Hathaway Inc. ClsB | E15: =RTD("cqg.rtd", ,"ContractData",C15, "Open",, "T") -> 165.27 | F15: =RTD("cqg.rtd", ,"ContractData",C15, "High",, "T") -> 165.27 | G15: =RTD("cqg.rtd", ,"ContractData",C15, "Low",, "T") -> 164.1 | H15: =RTD("cqg.rtd", ,"ContractData",C15, "LastTradeToday",, "T") -> 165 | I15: =RTD("cqg.rtd", ,"ContractData",C15, "NetLastTradeToday",, "T") -> -0.11 | J15: =RTD("cqg.rtd", ,"ContractData",C15, "PerCentNetLastTrade",, "T")/100 -> -0.0006662225183 | K15: =RTD("cqg.rtd", ,"ContractData", C15, "T_CVol",, "T") -> 623261 | L15: 15 | M15: =RANK($J15,$J$1:J$65)+COUNTIF($J$1:J15,J15)-1 -> 17 | N15: S.US.BRKB | O15: S.US.MMC | P15: =RTD("cqg.rtd", ,"ContractData",O15, "PerCentNetLastTrade",, "T")/100 -> 0.0001292156609 | Q15: https://finance.yahoo.com/quote/MMC | S15: 0.0001292156609 | V15: =RTD("cqg.rtd", ,"ContractData",O15, "LongDescription",, "T") -> Marsh & McLennan Cos Inc | Y15: 0.0001292156609 | AA15: 1 | AB15: 1 | AD15: 0.0001292156609
A16: Corn - Settlement, Jul 17 | B16: C | C16: S.US.C | D16: =RTD("cqg.rtd", ,"ContractData",C16, "LongDescription",, "T") -> Citigroup Inc | E16: =RTD("cqg.rtd", ,"ContractData",C16, "Open",, "T") -> 61.59 | F16: =RTD("cqg.rtd", ,"ContractData",C16, "High",, "T") -> 61.6 | G16: =RTD("cqg.rtd", ,"ContractData",C16, "Low",, "T") -> 59.87 | H16: =RTD("cqg.rtd", ,"ContractData",C16, "LastTradeToday",, "T") -> 60.09 | I16: =RTD("cqg.rtd", ,"ContractData",C16, "NetLastTradeToday",, "T") -> -1.55 | J16: =RTD("cqg.rtd", ,"ContractData",C16, "PerCentNetLastTrade",, "T")/100 -> -0.02514600909 | K16: =RTD("cqg.rtd", ,"ContractData", C16, "T_CVol",, "T") -> 5129820 | L16: 16 | M16: =RANK($J16,$J$1:J$65)+COUNTIF($J$1:J16,J16)-1 -> 62 | N16: S.US.C | O16: S.US.BLK | P16: =RTD("cqg.rtd", ,"ContractData",O16, "PerCentNetLastTrade",, "T")/100 -> -0.0006636841847 | Q16: https://finance.yahoo.com/quote/BLK | T16: 0.0006636841847 | V16: =RTD("cqg.rtd", ,"ContractData",O16, "LongDescription",, "T") -> Blackrock Inc | Y16: -0.0006636841847 | AB16: 0 | AE16: 0.0006636841847 | AF16: -0.0006636841847
A17: 10yr Canadian Government Bond, Sep 17 | B17: CB | C17: S.US.CB | D17: =RTD("cqg.rtd", ,"ContractData",C17, "LongDescription",, "T") -> Chubb Corporation | E17: =RTD("cqg.rtd", ,"ContractData",C17, "Open",, "T") -> 141.96 | F17: =RTD("cqg.rtd", ,"ContractData",C17, "High",, "T") -> 142.55 | G17: =RTD("cqg.rtd", ,"ContractData",C17, "Low",, "T") -> 141.83 | H17: =RTD("cqg.rtd", ,"ContractData",C17, "LastTradeToday",, "T") -> 142.39 | I17: =RTD("cqg.rtd", ,"ContractData",C17, "NetLastTradeToday",, "T") -> 0.5 | J17: =RTD("cqg.rtd", ,"ContractData",C17, "PerCentNetLastTrade",, "T")/100 -> 0.003523856509 | K17: =RTD("cqg.rtd", ,"ContractData", C17, "T_CVol",, "T") -> 150055 | L17: 17 | M17: =RANK($J17,$J$1:J$65)+COUNTIF($J$1:J17,J17)-1 -> 2 | N17: S.US.CB | O17: S.US.BRKB | P17: =RTD("cqg.rtd", ,"ContractData",O17, "PerCentNetLastTrade",, "T")/100 -> -0.0006662225183 | Q17: https://finance.yahoo.com/quote/BRKB | T17: 0.0006662225183 | V17: =RTD("cqg.rtd", ,"ContractData",O17, "LongDescription",, "T") -> Berkshire Hathaway Inc. ClsB | Y17: -0.0006662225183 | AB17: 0 | AE17: 0.0006662225183 | AF17: -0.0006662225183
A18: CBOE Holdings, Inc. | B18: CBOE | C18: S.US.CBOE | D18: =RTD("cqg.rtd", ,"ContractData",C18, "LongDescription",, "T") -> CBOE Holdings, Inc. | E18: =RTD("cqg.rtd", ,"ContractData",C18, "Open",, "T") -> 86.74 | F18: =RTD("cqg.rtd", ,"ContractData",C18, "High",, "T") -> 86.89 | G18: =RTD("cqg.rtd", ,"ContractData",C18, "Low",, "T") -> 86.43 | H18: =RTD("cqg.rtd", ,"ContractData",C18, "LastTradeToday",, "T") -> 86.57 | I18: =RTD("cqg.rtd", ,"ContractData",C18, "NetLastTradeToday",, "T") -> -0.08 | J18: =RTD("cqg.rtd", ,"ContractData",C18, "PerCentNetLastTrade",, "T")/100 -> -0.000923254472 | K18: =RTD("cqg.rtd", ,"ContractData", C18, "T_CVol",, "T") -> 190335 | L18: 18 | M18: =RANK($J18,$J$1:J$65)+COUNTIF($J$1:J18,J18)-1 -> 18 | N18: S.US.CBOE | O18: S.US.CBOE | P18: =RTD("cqg.rtd", ,"ContractData",O18, "PerCentNetLastTrade",, "T")/100 -> -0.000923254472 | Q18: https://finance.yahoo.com/quote/CBOE | T18: 0.000923254472 | V18: =RTD("cqg.rtd", ,"ContractData",O18, "LongDescription",, "T") -> CBOE Holdings, Inc. | Y18: -0.000923254472 | AB18: 0 | AE18: 0.000923254472 | AF18: -0.000923254472
A19: Citizens Financial Group, Inc. | B19: CFG | C19: S.US.CFG | D19: =RTD("cqg.rtd", ,"ContractData",C19, "LongDescription",, "T") -> Citizens Financial Group, Inc. | E19: =RTD("cqg.rtd", ,"ContractData",C19, "Open",, "T") -> 34.34 | F19: =RTD("cqg.rtd", ,"ContractData",C19, "High",, "T") -> 34.39 | G19: =RTD("cqg.rtd", ,"ContractData",C19, "Low",, "T") -> 33.53 | H19: =RTD("cqg.rtd", ,"ContractData",C19, "LastTradeToday",, "T") -> 33.69 | I19: =RTD("cqg.rtd", ,"ContractData",C19, "NetLastTradeToday",, "T") -> -0.56 | J19: =RTD("cqg.rtd", ,"ContractData",C19, "PerCentNetLastTrade",, "T")/100 -> -0.01635036496 | K19: =RTD("cqg.rtd", ,"ContractData", C19, "T_CVol",, "T") -> 526251 | L19: 19 | M19: =RANK($J19,$J$1:J$65)+COUNTIF($J$1:J19,J19)-1 -> 46 | N19: S.US.CFG | O19: S.US.AFL | P19: =RTD("cqg.rtd", ,"ContractData",O19, "PerCentNetLastTrade",, "T")/100 -> -0.001597018898 | Q19: https://finance.yahoo.com/quote/AFL | T19: 0.001597018898 | V19: =RTD("cqg.rtd", ,"ContractData",O19, "LongDescription",, "T") -> AFLAC Inc | Y19: -0.001597018898 | AB19: 0 | AE19: 0.001597018898 | AF19: -0.001597018898
A20: CIG Basis Swap (Platts IFERC), Jan 18 | B20: CINF | C20: S.US.CINF | D20: =RTD("cqg.rtd", ,"ContractData",C20, "LongDescription",, "T") -> Cincinnati Fincl Corp | E20: =RTD("cqg.rtd", ,"ContractData",C20, "Open",, "T") -> 69.81 | F20: =RTD("cqg.rtd", ,"ContractData",C20, "High",, "T") -> 70.03 | G20: =RTD("cqg.rtd", ,"ContractData",C20, "Low",, "T") -> 69.36 | H20: =RTD("cqg.rtd", ,"ContractData",C20, "LastTradeToday",, "T") -> 69.59 | I20: =RTD("cqg.rtd", ,"ContractData",C20, "NetLastTradeToday",, "T") -> 0.06 | J20: =RTD("cqg.rtd", ,"ContractData",C20, "PerCentNetLastTrade",, "T")/100 -> 0.0008629368618 | K20: =RTD("cqg.rtd", ,"ContractData", C20, "T_CVol",, "T") -> 54864 | L20: 20 | M20: =RANK($J20,$J$1:J$65)+COUNTIF($J$1:J20,J20)-1 -> 11 | N20: S.US.CINF | O20: S.US.AMG | P20: =RTD("cqg.rtd", ,"ContractData",O20, "PerCentNetLastTrade",, "T")/100 -> -0.002352633643 | Q20: https://finance.yahoo.com/quote/AMG | T20: 0.002352633643 | V20: =RTD("cqg.rtd", ,"ContractData",O20, "LongDescription",, "T") -> Affiliated Managers Grp Inc | Y20: -0.002352633643 | AB20: 0 | AE20: 0.002352633643 | AF20: -0.002352633643
A21: Comerica Inc | B21: CMA | C21: S.US.CMA | D21: =RTD("cqg.rtd", ,"ContractData",C21, "LongDescription",, "T") -> Comerica Inc | E21: =RTD("cqg.rtd", ,"ContractData",C21, "Open",, "T") -> 68.63 | F21: =RTD("cqg.rtd", ,"ContractData",C21, "High",, "T") -> 68.63 | G21: =RTD("cqg.rtd", ,"ContractData",C21, "Low",, "T") -> 67.17 | H21: =RTD("cqg.rtd", ,"ContractData",C21, "LastTradeToday",, "T") -> 67.41 | I21: =RTD("cqg.rtd", ,"ContractData",C21, "NetLastTradeToday",, "T") -> -1.09 | J21: =RTD("cqg.rtd", ,"ContractData",C21, "PerCentNetLastTrade",, "T")/100 -> -0.01591240876 | K21: =RTD("cqg.rtd", ,"ContractData", C21, "T_CVol",, "T") -> 160206 | L21: 21 | M21: =RANK($J21,$J$1:J$65)+COUNTIF($J$1:J21,J21)-1 -> 45 | N21: S.US.CMA | O21: S.US.L | P21: =RTD("cqg.rtd", ,"ContractData",O21, "PerCentNetLastTrade",, "T")/100 -> -0.002773037543 | Q21: https://finance.yahoo.com/quote/L | T21: =IF(P21>=0,NA(),-1*P21) -> 0.002773037543 | V21: =RTD("cqg.rtd", ,"ContractData",O21, "LongDescription",, "T") -> Loews Corporation | Y21: -0.002773037543 | AB21: 0 | AE21: 0.002773037543 | AF21: -0.002773037543
A22: Chicago Merc Exch Holding Inc | B22: CME | C22: S.US.CME | D22: =RTD("cqg.rtd", ,"ContractData",C22, "LongDescription",, "T") -> Chicago Merc Exch Holding Inc | E22: =RTD("cqg.rtd", ,"ContractData",C22, "Open",, "T") -> 117.5 | F22: =RTD("cqg.rtd", ,"ContractData",C22, "High",, "T") -> 117.5 | G22: =RTD("cqg.rtd", ,"ContractData",C22, "Low",, "T") -> 116.64 | H22: =RTD("cqg.rtd", ,"ContractData",C22, "LastTradeToday",, "T") -> 116.8 | I22: =RTD("cqg.rtd", ,"ContractData",C22, "NetLastTradeToday",, "T") -> -0.4 | J22: =RTD("cqg.rtd", ,"ContractData",C22, "PerCentNetLastTrade",, "T")/100 -> -0.003412969283 | K22: =RTD("cqg.rtd", ,"ContractData", C22, "T_CVol",, "T") -> 156498 | L22: 22 | M22: =RANK($J22,$J$1:J$65)+COUNTIF($J$1:J22,J22)-1 -> 22 | N22: S.US.CME | O22: S.US.CME | P22: =RTD("cqg.rtd", ,"ContractData",O22, "PerCentNetLastTrade",, "T")/100 -> -0.003412969283 | Q22: https://finance.yahoo.com/quote/CME | T22: 0.003412969283 | V22: =RTD("cqg.rtd", ,"ContractData",O22, "LongDescription",, "T") -> Chicago Merc Exch Holding Inc | Y22: -0.003412969283 | AB22: 0 | AE22: 0.003412969283 | AF22: -0.003412969283
A23: Capital One Financl Corp | B23: COF | C23: S.US.COF | D23: =RTD("cqg.rtd", ,"ContractData",C23, "LongDescription",, "T") -> Capital One Financl Corp | E23: =RTD("cqg.rtd", ,"ContractData",C23, "Open",, "T") -> 78.39 | F23: =RTD("cqg.rtd", ,"ContractData",C23, "High",, "T") -> 78.39 | G23: =RTD("cqg.rtd", ,"ContractData",C23, "Low",, "T") -> 76.05 | H23: =RTD("cqg.rtd", ,"ContractData",C23, "LastTradeToday",, "T") -> 76.39 | I23: =RTD("cqg.rtd", ,"ContractData",C23, "NetLastTradeToday",, "T") -> -1.89 | J23: =RTD("cqg.rtd", ,"ContractData",C23, "PerCentNetLastTrade",, "T")/100 -> -0.02414409811 | K23: =RTD("cqg.rtd", ,"ContractData", C23, "T_CVol",, "T") -> 575183 | L23: 23 | M23: =RANK($J23,$J$1:J$65)+COUNTIF($J$1:J23,J23)-1 -> 60 | N23: S.US.COF | O23: S.US.AIG | P23: =RTD("cqg.rtd", ,"ContractData",O23, "PerCentNetLastTrade",, "T")/100 -> -0.004680187207 | Q23: https://finance.yahoo.com/quote/AIG | T23: 0.004680187207 | V23: =RTD("cqg.rtd", ,"ContractData",O23, "LongDescription",, "T") -> American Intl Group Inc | Y23: -0.004680187207 | AB23: 0 | AE23: =IFERROR(T23,"") -> 0.004680187207 | AF23: -0.004680187207
A24: Discover Financial Services | B24: DFS | C24: S.US.DFS | D24: =RTD("cqg.rtd", ,"ContractData",C24, "LongDescription",, "T") -> Discover Financial Services | E24: =RTD("cqg.rtd", ,"ContractData",C24, "Open",, "T") -> 59.07 | F24: =RTD("cqg.rtd", ,"ContractData",C24, "High",, "T") -> 59.27 | G24: =RTD("cqg.rtd", ,"ContractData",C24, "Low",, "T") -> 57.82 | H24: =RTD("cqg.rtd", ,"ContractData",C24, "LastTradeToday",, "T") -> 58.05 | I24: =RTD("cqg.rtd", ,"ContractData",C24, "NetLastTradeToday",, "T") -> -0.81 | J24: =RTD("cqg.rtd", ,"ContractData",C24, "PerCentNetLastTrade",, "T")/100 -> -0.01376146789 | K24: =RTD("cqg.rtd", ,"ContractData", C24, "T_CVol",, "T") -> 529538 | L24: 24 | M24: =RANK($J24,$J$1:J$65)+COUNTIF($J$1:J24,J24)-1 -> 42 | N24: S.US.DFS | O24: S.US.BK | P24: =RTD("cqg.rtd", ,"ContractData",O24, "PerCentNetLastTrade",, "T")/100 -> -0.004883227176 | Q24: https://finance.yahoo.com/quote/BK | T24: 0.004883227176 | V24: =RTD("cqg.rtd", ,"ContractData",O24, "LongDescription",, "T") -> Bank of New York Co Inc | Y24: -0.004883227176 | AB24: 0 | AE24: 0.004883227176 | AF24: -0.004883227176
A25: E*Trade Financial Corp | B25: ETFC | C25: S.US.ETFC | D25: =RTD("cqg.rtd", ,"ContractData",C25, "LongDescription",, "T") -> E*Trade Financial Corp | E25: =RTD("cqg.rtd", ,"ContractData",C25, "Open",, "T") -> 34.76 | F25: =RTD("cqg.rtd", ,"ContractData",C25, "High",, "T") -> 34.95 | G25: =RTD("cqg.rtd", ,"ContractData",C25, "Low",, "T") -> 34 | H25: =RTD("cqg.rtd", ,"ContractData",C25, "LastTradeToday",, "T") -> 34.13 | I25: =RTD("cqg.rtd", ,"ContractData",C25, "NetLastTradeToday",, "T") -> -0.61 | J25: =RTD("cqg.rtd", ,"ContractData",C25, "PerCentNetLastTrade",, "T")/100 -> -0.01755900979 | K25: =RTD("cqg.rtd", ,"ContractData", C25, "T_CVol",, "T") -> 301956 | L25: 25 | M25: =RANK($J25,$J$1:J$65)+COUNTIF($J$1:J25,J25)-1 -> 49 | N25: S.US.ETFC | O25: S.US.AJG | P25: =RTD("cqg.rtd", ,"ContractData",O25, "PerCentNetLastTrade",, "T")/100 -> -0.005265929437 | Q25: https://finance.yahoo.com/quote/AJG | T25: 0.005265929437 | V25: =RTD("cqg.rtd", ,"ContractData",O25, "LongDescription",, "T") -> Arthur J Gallagher Co | Y25: -0.005265929437 | AB25: 0 | AD25: =IFERROR(S25,"") ->  | AE25: =IFERROR(T25,"") -> 0.005265929437 | AF25: -0.005265929437
A26: Fifth Third Bancorp | B26: FITB | C26: S.US.FITB | D26: =RTD("cqg.rtd", ,"ContractData",C26, "LongDescription",, "T") -> Fifth Third Bancorp | E26: =RTD("cqg.rtd", ,"ContractData",C26, "Open",, "T") -> 24.07 | F26: =RTD("cqg.rtd", ,"ContractData",C26, "High",, "T") -> 24.09 | G26: =RTD("cqg.rtd", ,"ContractData",C26, "Low",, "T") -> 23.6 | H26: =RTD("cqg.rtd", ,"ContractData",C26, "LastTradeToday",, "T") -> 23.71 | I26: =RTD("cqg.rtd", ,"ContractData",C26, "NetLastTradeToday",, "T") -> -0.34 | J26: =RTD("cqg.rtd", ,"ContractData",C26, "PerCentNetLastTrade",, "T")/100 -> -0.01413721414 | K26: =RTD("cqg.rtd", ,"ContractData", C26, "T_CVol",, "T") -> 1428976 | L26: 26 | M26: =RANK($J26,$J$1:J$65)+COUNTIF($J$1:J26,J26)-1 -> 44 | N26: S.US.FITB | O26: S.US.PFG | P26: =RTD("cqg.rtd", ,"ContractData",O26, "PerCentNetLastTrade",, "T")/100 -> -0.006717850288 | Q26: https://finance.yahoo.com/quote/PFG | T26: 0.006717850288 | V26: =RTD("cqg.rtd", ,"ContractData",O26, "LongDescription",, "T") -> Principal Financial Group | Y26: -0.006717850288 | AB26: 0
A27: SA Base Load Quarterly $300 Cap Electric, Jun 17 | B27: GS | C27: S.US.GS | D27: =RTD("cqg.rtd", ,"ContractData",C27, "LongDescription",, "T") -> Goldman Sachs Group | E27: =RTD("cqg.rtd", ,"ContractData",C27, "Open",, "T") -> 218.24 | F27: =RTD("cqg.rtd", ,"ContractData",C27, "High",, "T") -> 218.3 | G27: =RTD("cqg.rtd", ,"ContractData",C27, "Low",, "T") -> 209.62 | H27: =RTD("cqg.rtd", ,"ContractData",C27, "LastTradeToday",, "T") -> 210.56 | I27: =RTD("cqg.rtd", ,"ContractData",C27, "NetLastTradeToday",, "T") -> -7.86 | J27: =RTD("cqg.rtd", ,"ContractData",C27, "PerCentNetLastTrade",, "T")/100 -> -0.03598571559 | K27: =RTD("cqg.rtd", ,"ContractData", C27, "T_CVol",, "T") -> 2274998 | L27: 27 | M27: =RANK($J27,$J$1:J$65)+COUNTIF($J$1:J27,J27)-1 -> 65 | N27: S.US.GS | O27: S.US.TMK | P27: =RTD("cqg.rtd", ,"ContractData",O27, "PerCentNetLastTrade",, "T")/100 -> -0.006908462867 | Q27: https://finance.yahoo.com/quote/TMK | T27: 0.006908462867 | V27: =RTD("cqg.rtd", ,"ContractData",O27, "LongDescription",, "T") -> Torchmark Corp | Y27: -0.006908462867 | AB27: 0
A28: Huntington Bancshrs Inc | B28: HBAN | C28: S.US.HBAN | D28: =RTD("cqg.rtd", ,"ContractData",C28, "LongDescription",, "T") -> Huntington Bancshrs Inc | E28: =RTD("cqg.rtd", ,"ContractData",C28, "Open",, "T") -> 12.74 | F28: =RTD("cqg.rtd", ,"ContractData",C28, "High",, "T") -> 12.81 | G28: =RTD("cqg.rtd", ,"ContractData",C28, "Low",, "T") -> 12.45 | H28: =RTD("cqg.rtd", ,"ContractData",C28, "LastTradeToday",, "T") -> 12.47 | I28: =RTD("cqg.rtd", ,"ContractData",C28, "NetLastTradeToday",, "T") -> -0.27 | J28: =RTD("cqg.rtd", ,"ContractData",C28, "PerCentNetLastTrade",, "T")/100 -> -0.02119309262 | K28: =RTD("cqg.rtd", ,"ContractData", C28, "T_CVol",, "T") -> 1358281 | L28: 28 | M28: =RANK($J28,$J$1:J$65)+COUNTIF($J$1:J28,J28)-1 -> 54 | N28: S.US.HBAN | O28: S.US.ZION | P28: =RTD("cqg.rtd", ,"ContractData",O28, "PerCentNetLastTrade",, "T")/100 -> -0.007775269626 | Q28: https://finance.yahoo.com/quote/ZION | T28: 0.007775269626 | V28: =RTD("cqg.rtd", ,"ContractData",O28, "LongDescription",, "T") -> Zions Bancorp | Y28: -0.007775269626 | AB28: 0
A29: The Hartford Fincl Svcs Grp | B29: HIG | C29: S.US.HIG | D29: =RTD("cqg.rtd", ,"ContractData",C29, "LongDescription",, "T") -> The Hartford Fincl Svcs Grp | E29: =RTD("cqg.rtd", ,"ContractData",C29, "Open",, "T") -> 49.06 | F29: =RTD("cqg.rtd", ,"ContractData",C29, "High",, "T") -> 49.45 | G29: =RTD("cqg.rtd", ,"ContractData",C29, "Low",, "T") -> 48.92 | H29: =RTD("cqg.rtd", ,"ContractData",C29, "LastTradeToday",, "T") -> 49.08 | I29: =RTD("cqg.rtd", ,"ContractData",C29, "NetLastTradeToday",, "T") -> 0.03 | J29: =RTD("cqg.rtd", ,"ContractData",C29, "PerCentNetLastTrade",, "T")/100 -> 0.0006116207951 | K29: =RTD("cqg.rtd", ,"ContractData", C29, "T_CVol",, "T") -> 309062 | L29: 29 | M29: =RANK($J29,$J$1:J$65)+COUNTIF($J$1:J29,J29)-1 -> 12 | N29: S.US.HIG | O29: S.US.BEN | P29: =RTD("cqg.rtd", ,"ContractData",O29, "PerCentNetLastTrade",, "T")/100 -> -0.007930785869 | Q29: https://finance.yahoo.com/quote/BEN | T29: 0.007930785869 | V29: =RTD("cqg.rtd", ,"ContractData",O29, "LongDescription",, "T") -> Franklin Resources Inc | Y29: -0.007930785869 | AB29: 0
A30: Exports excluding Agricultural | B30: ICE | C30: S.US.ICE | D30: =RTD("cqg.rtd", ,"ContractData",C30, "LongDescription",, "T") -> Intercontinental, Inc. | E30: =RTD("cqg.rtd", ,"ContractData",C30, "Open",, "T") -> 60.86 | F30: =RTD("cqg.rtd", ,"ContractData",C30, "High",, "T") -> 60.86 | G30: =RTD("cqg.rtd", ,"ContractData",C30, "Low",, "T") -> 59.91 | H30: =RTD("cqg.rtd", ,"ContractData",C30, "LastTradeToday",, "T") -> 60.22 | I30: =RTD("cqg.rtd", ,"ContractData",C30, "NetLastTradeToday",, "T") -> 0.06 | J30: =RTD("cqg.rtd", ,"ContractData",C30, "PerCentNetLastTrade",, "T")/100 -> 0.0009973404255 | K30: =RTD("cqg.rtd", ,"ContractData", C30, "T_CVol",, "T") -> 230489 | L30: 30 | M30: =RANK($J30,$J$1:J$65)+COUNTIF($J$1:J30,J30)-1 -> 9 | N30: S.US.ICE | O30: S.US.STT | P30: =RTD("cqg.rtd", ,"ContractData",O30, "PerCentNetLastTrade",, "T")/100 -> -0.007957884427 | Q30: https://finance.yahoo.com/quote/STT | T30: 0.007957884427 | V30: =RTD("cqg.rtd", ,"ContractData",O30, "LongDescription",, "T") -> State Street Corp | Y30: -0.007957884427 | AB30: 0
A31: Panhandle Index (Platts), Dec 17 | B31: IVZ | C31: S.US.IVZ | D31: =RTD("cqg.rtd", ,"ContractData",C31, "LongDescription",, "T") -> INVESCO LTD | E31: =RTD("cqg.rtd", ,"ContractData",C31, "Open",, "T") -> 31.85 | F31: =RTD("cqg.rtd", ,"ContractData",C31, "High",, "T") -> 31.9 | G31: =RTD("cqg.rtd", ,"ContractData",C31, "Low",, "T") -> 31.16 | H31: =RTD("cqg.rtd", ,"ContractData",C31, "LastTradeToday",, "T") -> 31.31 | I31: =RTD("cqg.rtd", ,"ContractData",C31, "NetLastTradeToday",, "T") -> -0.31 | J31: =RTD("cqg.rtd", ,"ContractData",C31, "PerCentNetLastTrade",, "T")/100 -> -0.009803921569 | K31: =RTD("cqg.rtd", ,"ContractData", C31, "T_CVol",, "T") -> 302122 | L31: 31 | M31: =RANK($J31,$J$1:J$65)+COUNTIF($J$1:J31,J31)-1 -> 32 | N31: S.US.IVZ | O31: S.US.AIZ | P31: =RTD("cqg.rtd", ,"ContractData",O31, "PerCentNetLastTrade",, "T")/100 -> -0.009132420091 | Q31: https://finance.yahoo.com/quote/AIZ | T31: 0.009132420091 | V31: =RTD("cqg.rtd", ,"ContractData",O31, "LongDescription",, "T") -> Assurant Inc | Y31: -0.009132420091 | AB31: 0
A32: JPMorgan Chase & Co. | B32: JPM | C32: S.US.JPM | D32: =RTD("cqg.rtd", ,"ContractData",C32, "LongDescription",, "T") -> JPMorgan Chase & Co. | E32: =RTD("cqg.rtd", ,"ContractData",C32, "Open",, "T") -> 83.73 | F32: =RTD("cqg.rtd", ,"ContractData",C32, "High",, "T") -> 83.82 | G32: =RTD("cqg.rtd", ,"ContractData",C32, "Low",, "T") -> 82.01 | H32: =RTD("cqg.rtd", ,"ContractData",C32, "LastTradeToday",, "T") -> 82.08 | I32: =RTD("cqg.rtd", ,"ContractData",C32, "NetLastTradeToday",, "T") -> -1.82 | J32: =RTD("cqg.rtd", ,"ContractData",C32, "PerCentNetLastTrade",, "T")/100 -> -0.02169249106 | K32: =RTD("cqg.rtd", ,"ContractData", C32, "T_CVol",, "T") -> 5961719 | L32: 32 | M32: =RANK($J32,$J$1:J$65)+COUNTIF($J$1:J32,J32)-1 -> 57 | N32: S.US.JPM | O32: S.US.IVZ | P32: =RTD("cqg.rtd", ,"ContractData",O32, "PerCentNetLastTrade",, "T")/100 -> -0.009803921569 | Q32: https://finance.yahoo.com/quote/IVZ | T32: 0.009803921569 | V32: =RTD("cqg.rtd", ,"ContractData",O32, "LongDescription",, "T") -> INVESCO LTD | Y32: -0.009803921569 | AB32: 0
A33: KeyCorp | B33: KEY | C33: S.US.KEY | D33: =RTD("cqg.rtd", ,"ContractData",C33, "LongDescription",, "T") -> KeyCorp | E33: =RTD("cqg.rtd", ,"ContractData",C33, "Open",, "T") -> 17.84 | F33: =RTD("cqg.rtd", ,"ContractData",C33, "High",, "T") -> 17.89 | G33: =RTD("cqg.rtd", ,"ContractData",C33, "Low",, "T") -> 17.41 | H33: =RTD("cqg.rtd", ,"ContractData",C33, "LastTradeToday",, "T") -> 17.48 | I33: =RTD("cqg.rtd", ,"ContractData",C33, "NetLastTradeToday",, "T") -> -0.35 | J33: =RTD("cqg.rtd", ,"ContractData",C33, "PerCentNetLastTrade",, "T")/100 -> -0.01962983735 | K33: =RTD("cqg.rtd", ,"ContractData", C33, "T_CVol",, "T") -> 1193807 | L33: 33 | M33: =RANK($J33,$J$1:J$65)+COUNTIF($J$1:J33,J33)-1 -> 53 | N33: S.US.KEY | O33: S.US.AXP | P33: =RTD("cqg.rtd", ,"ContractData",O33, "PerCentNetLastTrade",, "T")/100 -> -0.01050719938 | Q33: https://finance.yahoo.com/quote/AXP | T33: 0.01050719938 | V33: =RTD("cqg.rtd", ,"ContractData",O33, "LongDescription",, "T") -> American Express Co | Y33: -0.01050719938 | AB33: 0
A34: Loews Corporation | B34: L | C34: S.US.L | D34: =RTD("cqg.rtd", ,"ContractData",C34, "LongDescription",, "T") -> Loews Corporation | E34: =RTD("cqg.rtd", ,"ContractData",C34, "Open",, "T") -> 46.89 | F34: =RTD("cqg.rtd", ,"ContractData",C34, "High",, "T") -> 46.89 | G34: =RTD("cqg.rtd", ,"ContractData",C34, "Low",, "T") -> 46.72 | H34: =RTD("cqg.rtd", ,"ContractData",C34, "LastTradeToday",, "T") -> 46.75 | I34: =RTD("cqg.rtd", ,"ContractData",C34, "NetLastTradeToday",, "T") -> -0.13 | J34: =RTD("cqg.rtd", ,"ContractData",C34, "PerCentNetLastTrade",, "T")/100 -> -0.002773037543 | K34: =RTD("cqg.rtd", ,"ContractData", C34, "T_CVol",, "T") -> 107713 | L34: 34 | M34: =RANK($J34,$J$1:J$65)+COUNTIF($J$1:J34,J34)-1 -> 21 | N34: S.US.L | O34: S.US.MET | P34: =RTD("cqg.rtd", ,"ContractData",O34, "PerCentNetLastTrade",, "T")/100 -> -0.01065088757 | Q34: https://finance.yahoo.com/quote/MET | T34: 0.01065088757 | V34: =RTD("cqg.rtd", ,"ContractData",O34, "LongDescription",, "T") -> MetLife Inc | Y34: -0.01065088757 | AB34: 0
A35: Lincoln National Corp | B35: LNC | C35: S.US.LNC | D35: =RTD("cqg.rtd", ,"ContractData",C35, "LongDescription",, "T") -> Lincoln National Corp | E35: =RTD("cqg.rtd", ,"ContractData",C35, "Open",, "T") -> 65.06 | F35: =RTD("cqg.rtd", ,"ContractData",C35, "High",, "T") -> 65.06 | G35: =RTD("cqg.rtd", ,"ContractData",C35, "Low",, "T") -> 63.7 | H35: =RTD("cqg.rtd", ,"ContractData",C35, "LastTradeToday",, "T") -> 63.99 | I35: =RTD("cqg.rtd", ,"ContractData",C35, "NetLastTradeToday",, "T") -> -0.88 | J35: =RTD("cqg.rtd", ,"ContractData",C35, "PerCentNetLastTrade",, "T")/100 -> -0.01356559272 | K35: =RTD("cqg.rtd", ,"ContractData", C35, "T_CVol",, "T") -> 117588 | L35: 35 | M35: =RANK($J35,$J$1:J$65)+COUNTIF($J$1:J35,J35)-1 -> 41 | N35: S.US.LNC | O35: S.US.UNM | P35: =RTD("cqg.rtd", ,"ContractData",O35, "PerCentNetLastTrade",, "T")/100 -> -0.01133081537 | Q35: https://finance.yahoo.com/quote/UNM | T35: 0.01133081537 | V35: =RTD("cqg.rtd", ,"ContractData",O35, "LongDescription",, "T") -> UNUMProvident Corp | Y35: -0.01133081537 | AB35: 0
A36: Leucadia National Corp | B36: LUK | C36: S.US.LUK | D36: =RTD("cqg.rtd", ,"ContractData",C36, "LongDescription",, "T") -> Leucadia National Corp | E36: =RTD("cqg.rtd", ,"ContractData",C36, "Open",, "T") -> 24.41 | F36: =RTD("cqg.rtd", ,"ContractData",C36, "High",, "T") -> 24.49 | G36: =RTD("cqg.rtd", ,"ContractData",C36, "Low",, "T") -> 23.8 | H36: =RTD("cqg.rtd", ,"ContractData",C36, "LastTradeToday",, "T") -> 23.88 | I36: =RTD("cqg.rtd", ,"ContractData",C36, "NetLastTradeToday",, "T") -> -0.52 | J36: =RTD("cqg.rtd", ,"ContractData",C36, "PerCentNetLastTrade",, "T")/100 -> -0.02131147541 | K36: =RTD("cqg.rtd", ,"ContractData", C36, "T_CVol",, "T") -> 253137 | L36: 36 | M36: =RANK($J36,$J$1:J$65)+COUNTIF($J$1:J36,J36)-1 -> 55 | N36: S.US.LUK | O36: S.US.PRU | P36: =RTD("cqg.rtd", ,"ContractData",O36, "PerCentNetLastTrade",, "T")/100 -> -0.01153919512 | Q36: https://finance.yahoo.com/quote/PRU | T36: 0.01153919512 | V36: =RTD("cqg.rtd", ,"ContractData",O36, "LongDescription",, "T") -> Prudential Financial Inc | Y36: -0.01153919512 | AB36: 0
A37: Moodys Corp | B37: MCO | C37: S.US.MCO | D37: =RTD("cqg.rtd", ,"ContractData",C37, "LongDescription",, "T") -> Moodys Corp | E37: =RTD("cqg.rtd", ,"ContractData",C37, "Open",, "T") -> 117 | F37: =RTD("cqg.rtd", ,"ContractData",C37, "High",, "T") -> 117.21 | G37: =RTD("cqg.rtd", ,"ContractData",C37, "Low",, "T") -> 116.3 | H37: =RTD("cqg.rtd", ,"ContractData",C37, "LastTradeToday",, "T") -> 116.8 | I37: =RTD("cqg.rtd", ,"ContractData",C37, "NetLastTradeToday",, "T") -> 0.04 | J37: =RTD("cqg.rtd", ,"ContractData",C37, "PerCentNetLastTrade",, "T")/100 -> 0.0003425830764 | K37: =RTD("cqg.rtd", ,"ContractData", C37, "T_CVol",, "T") -> 36760 | L37: 37 | M37: =RANK($J37,$J$1:J$65)+COUNTIF($J$1:J37,J37)-1 -> 14 | N37: S.US.MCO | O37: S.US.USB | P37: =RTD("cqg.rtd", ,"ContractData",O37, "PerCentNetLastTrade",, "T")/100 -> -0.01193737769 | Q37: https://finance.yahoo.com/quote/USB | T37: 0.01193737769 | V37: =RTD("cqg.rtd", ,"ContractData",O37, "LongDescription",, "T") -> U S Bancorp | Y37: -0.01193737769 | AB37: 0
A38: MetLife Inc | B38: MET | C38: S.US.MET | D38: =RTD("cqg.rtd", ,"ContractData",C38, "LongDescription",, "T") -> MetLife Inc | E38: =RTD("cqg.rtd", ,"ContractData",C38, "Open",, "T") -> 50.77 | F38: =RTD("cqg.rtd", ,"ContractData",C38, "High",, "T") -> 50.81 | G38: =RTD("cqg.rtd", ,"ContractData",C38, "Low",, "T") -> 49.98 | H38: =RTD("cqg.rtd", ,"ContractData",C38, "LastTradeToday",, "T") -> 50.16 | I38: =RTD("cqg.rtd", ,"ContractData",C38, "NetLastTradeToday",, "T") -> -0.54 | J38: =RTD("cqg.rtd", ,"ContractData",C38, "PerCentNetLastTrade",, "T")/100 -> -0.01065088757 | K38: =RTD("cqg.rtd", ,"ContractData", C38, "T_CVol",, "T") -> 597185 | L38: 38 | M38: =RANK($J38,$J$1:J$65)+COUNTIF($J$1:J38,J38)-1 -> 34 | N38: S.US.MET | O38: S.US.AMP | P38: =RTD("cqg.rtd", ,"ContractData",O38, "PerCentNetLastTrade",, "T")/100 -> -0.01205615194 | Q38: https://finance.yahoo.com/quote/AMP | T38: 0.01205615194 | V38: =RTD("cqg.rtd", ,"ContractData",O38, "LongDescription",, "T") -> Ameriprise Financial Inc | Y38: -0.01205615194 | AB38: 0
A39: MSTARMDCP | B39: MMC | C39: S.US.MMC | D39: =RTD("cqg.rtd", ,"ContractData",C39, "LongDescription",, "T") -> Marsh & McLennan Cos Inc | E39: =RTD("cqg.rtd", ,"ContractData",C39, "Open",, "T") -> 77.17 | F39: =RTD("cqg.rtd", ,"ContractData",C39, "High",, "T") -> 77.85 | G39: =RTD("cqg.rtd", ,"ContractData",C39, "Low",, "T") -> 77.17 | H39: =RTD("cqg.rtd", ,"ContractData",C39, "LastTradeToday",, "T") -> 77.4 | I39: =RTD("cqg.rtd", ,"ContractData",C39, "NetLastTradeToday",, "T") -> 0.01 | J39: =RTD("cqg.rtd", ,"ContractData",C39, "PerCentNetLastTrade",, "T")/100 -> 0.0001292156609 | K39: =RTD("cqg.rtd", ,"ContractData", C39, "T_CVol",, "T") -> 339687 | L39: 39 | M39: =RANK($J39,$J$1:J$65)+COUNTIF($J$1:J39,J39)-1 -> 15 | N39: S.US.MMC | O39: S.US.PBCT | P39: =RTD("cqg.rtd", ,"ContractData",O39, "PerCentNetLastTrade",, "T")/100 -> -0.0125748503 | Q39: https://finance.yahoo.com/quote/PBCT | T39: 0.0125748503 | V39: =RTD("cqg.rtd", ,"ContractData",O39, "LongDescription",, "T") -> Peoples United Financial | Y39: -0.0125748503 | AA39: =IF(S39="#N/A",0,1) ->  | AB39: 0
A40: Morgan Stanley | B40: MS | C40: S.US.MS | D40: =RTD("cqg.rtd", ,"ContractData",C40, "LongDescription",, "T") -> Morgan Stanley | E40: =RTD("cqg.rtd", ,"ContractData",C40, "Open",, "T") -> 42.19 | F40: =RTD("cqg.rtd", ,"ContractData",C40, "High",, "T") -> 42.19 | G40: =RTD("cqg.rtd", ,"ContractData",C40, "Low",, "T") -> 41.07 | H40: =RTD("cqg.rtd", ,"ContractData",C40, "LastTradeToday",, "T") -> 41.23 | I40: =RTD("cqg.rtd", ,"ContractData",C40, "NetLastTradeToday",, "T") -> -1.05 | J40: =RTD("cqg.rtd", ,"ContractData",C40, "PerCentNetLastTrade",, "T")/100 -> -0.02483443709 | K40: =RTD("cqg.rtd", ,"ContractData", C40, "T_CVol",, "T") -> 2315629 | L40: 40 | M40: =RANK($J40,$J$1:J$65)+COUNTIF($J$1:J40,J40)-1 -> 61 | N40: S.US.MS | O40: S.US.PNC | P40: =RTD("cqg.rtd", ,"ContractData",O40, "PerCentNetLastTrade",, "T")/100 -> -0.01346121487 | Q40: https://finance.yahoo.com/quote/PNC | T40: 0.01346121487 | V40: =RTD("cqg.rtd", ,"ContractData",O40, "LongDescription",, "T") -> PNC Fincl Svcs Grp Inc | Y40: -0.01346121487 | AB40: 0
A41: M&T Bank Corp | B41: MTB | C41: S.US.MTB | D41: =RTD("cqg.rtd", ,"ContractData",C41, "LongDescription",, "T") -> M&T Bank Corp | E41: =RTD("cqg.rtd", ,"ContractData",C41, "Open",, "T") -> 158.2 | F41: =RTD("cqg.rtd", ,"ContractData",C41, "High",, "T") -> 158.57 | G41: =RTD("cqg.rtd", ,"ContractData",C41, "Low",, "T") -> 155.19 | H41: =RTD("cqg.rtd", ,"ContractData",C41, "LastTradeToday",, "T") -> 155.36 | I41: =RTD("cqg.rtd", ,"ContractData",C41, "NetLastTradeToday",, "T") -> -2.71 | J41: =RTD("cqg.rtd", ,"ContractData",C41, "PerCentNetLastTrade",, "T")/100 -> -0.01714430316 | K41: =RTD("cqg.rtd", ,"ContractData", C41, "T_CVol",, "T") -> 83007 | L41: 41 | M41: =RANK($J41,$J$1:J$65)+COUNTIF($J$1:J41,J41)-1 -> 48 | N41: S.US.MTB | O41: S.US.LNC | P41: =RTD("cqg.rtd", ,"ContractData",O41, "PerCentNetLastTrade",, "T")/100 -> -0.01356559272 | Q41: https://finance.yahoo.com/quote/LNC | T41: 0.01356559272 | V41: =RTD("cqg.rtd", ,"ContractData",O41, "LongDescription",, "T") -> Lincoln National Corp | Y41: -0.01356559272 | AB41: 0
A42: Navient Corporation | B42: NAVI | C42: S.US.NAVI | D42: =RTD("cqg.rtd", ,"ContractData",C42, "LongDescription",, "T") -> Navient Corporation | E42: =RTD("cqg.rtd", ,"ContractData",C42, "Open",, "T") -> 14.6 | F42: =RTD("cqg.rtd", ,"ContractData",C42, "High",, "T") -> 14.6 | G42: =RTD("cqg.rtd", ,"ContractData",C42, "Low",, "T") -> 14.06 | H42: =RTD("cqg.rtd", ,"ContractData",C42, "LastTradeToday",, "T") -> 14.16 | I42: =RTD("cqg.rtd", ,"ContractData",C42, "NetLastTradeToday",, "T") -> -0.52 | J42: =RTD("cqg.rtd", ,"ContractData",C42, "PerCentNetLastTrade",, "T")/100 -> -0.03542234332 | K42: =RTD("cqg.rtd", ,"ContractData", C42, "T_CVol",, "T") -> 870874 | L42: 42 | M42: =RANK($J42,$J$1:J$65)+COUNTIF($J$1:J42,J42)-1 -> 64 | N42: S.US.NAVI | O42: S.US.DFS | P42: =RTD("cqg.rtd", ,"ContractData",O42, "PerCentNetLastTrade",, "T")/100 -> -0.01376146789 | Q42: https://finance.yahoo.com/quote/DFS | T42: 0.01376146789 | V42: =RTD("cqg.rtd", ,"ContractData",O42, "LongDescription",, "T") -> Discover Financial Services | Y42: -0.01376146789 | AB42: 0
A43: Nasdaq, Inc. | B43: NDAQ | C43: S.US.NDAQ | D43: =RTD("cqg.rtd", ,"ContractData",C43, "LongDescription",, "T") -> Nasdaq, Inc. | E43: =RTD("cqg.rtd", ,"ContractData",C43, "Open",, "T") -> 67.68 | F43: =RTD("cqg.rtd", ,"ContractData",C43, "High",, "T") -> 68.06 | G43: =RTD("cqg.rtd", ,"ContractData",C43, "Low",, "T") -> 67.42 | H43: =RTD("cqg.rtd", ,"ContractData",C43, "LastTradeToday",, "T") -> 67.51 | I43: =RTD("cqg.rtd", ,"ContractData",C43, "NetLastTradeToday",, "T") -> 0.09 | J43: =RTD("cqg.rtd", ,"ContractData",C43, "PerCentNetLastTrade",, "T")/100 -> 0.001334915455 | K43: =RTD("cqg.rtd", ,"ContractData", C43, "T_CVol",, "T") -> 110645 | L43: 43 | M43: =RANK($J43,$J$1:J$65)+COUNTIF($J$1:J43,J43)-1 -> 6 | N43: S.US.NDAQ | O43: S.US.WFC | P43: =RTD("cqg.rtd", ,"ContractData",O43, "PerCentNetLastTrade",, "T")/100 -> -0.01399539877 | Q43: https://finance.yahoo.com/quote/WFC | T43: 0.01399539877 | V43: =RTD("cqg.rtd", ,"ContractData",O43, "LongDescription",, "T") -> Wells Fargo & Co New | Y43: -0.01399539877 | AB43: 0
A44: Northern Trust Corp | B44: NTRS | C44: S.US.NTRS | D44: =RTD("cqg.rtd", ,"ContractData",C44, "LongDescription",, "T") -> Northern Trust Corp | E44: =RTD("cqg.rtd", ,"ContractData",C44, "Open",, "T") -> 87.81 | F44: =RTD("cqg.rtd", ,"ContractData",C44, "High",, "T") -> 87.82 | G44: =RTD("cqg.rtd", ,"ContractData",C44, "Low",, "T") -> 85.89 | H44: =RTD("cqg.rtd", ,"ContractData",C44, "LastTradeToday",, "T") -> 86.5 | I44: =RTD("cqg.rtd", ,"ContractData",C44, "NetLastTradeToday",, "T") -> -1.6 | J44: =RTD("cqg.rtd", ,"ContractData",C44, "PerCentNetLastTrade",, "T")/100 -> -0.01816118048 | K44: =RTD("cqg.rtd", ,"ContractData", C44, "T_CVol",, "T") -> 258165 | L44: 44 | M44: =RANK($J44,$J$1:J$65)+COUNTIF($J$1:J44,J44)-1 -> 50 | N44: S.US.NTRS | O44: S.US.FITB | P44: =RTD("cqg.rtd", ,"ContractData",O44, "PerCentNetLastTrade",, "T")/100 -> -0.01413721414 | Q44: https://finance.yahoo.com/quote/FITB | T44: 0.01413721414 | V44: =RTD("cqg.rtd", ,"ContractData",O44, "LongDescription",, "T") -> Fifth Third Bancorp | Y44: -0.01413721414 | AB44: 0
A45: Peoples United Financial | B45: PBCT | C45: S.US.PBCT | D45: =RTD("cqg.rtd", ,"ContractData",C45, "LongDescription",, "T") -> Peoples United Financial | E45: =RTD("cqg.rtd", ,"ContractData",C45, "Open",, "T") -> 16.71 | F45: =RTD("cqg.rtd", ,"ContractData",C45, "High",, "T") -> 16.78 | G45: =RTD("cqg.rtd", ,"ContractData",C45, "Low",, "T") -> 16.44 | H45: =RTD("cqg.rtd", ,"ContractData",C45, "LastTradeToday",, "T") -> 16.49 | I45: =RTD("cqg.rtd", ,"ContractData",C45, "NetLastTradeToday",, "T") -> -0.21 | J45: =RTD("cqg.rtd", ,"ContractData",C45, "PerCentNetLastTrade",, "T")/100 -> -0.0125748503 | K45: =RTD("cqg.rtd", ,"ContractData", C45, "T_CVol",, "T") -> 534258 | L45: 45 | M45: =RANK($J45,$J$1:J$65)+COUNTIF($J$1:J45,J45)-1 -> 39 | N45: S.US.PBCT | O45: S.US.CMA | P45: =RTD("cqg.rtd", ,"ContractData",O45, "PerCentNetLastTrade",, "T")/100 -> -0.01591240876 | Q45: https://finance.yahoo.com/quote/CMA | T45: 0.01591240876 | V45: =RTD("cqg.rtd", ,"ContractData",O45, "LongDescription",, "T") -> Comerica Inc | Y45: -0.01591240876 | AB45: 0 | AD45: =IFERROR(S45,"") ->  | AE45: =IFERROR(T45,"") -> 0.01591240876 | AF45: =IF(AE45="","",Y45) -> -0.01591240876
A46: Ventura Basis, Feb 18 | B46: PFG | C46: S.US.PFG | D46: =RTD("cqg.rtd", ,"ContractData",C46, "LongDescription",, "T") -> Principal Financial Group | E46: =RTD("cqg.rtd", ,"ContractData",C46, "Open",, "T") -> 62.65 | F46: =RTD("cqg.rtd", ,"ContractData",C46, "High",, "T") -> 62.65 | G46: =RTD("cqg.rtd", ,"ContractData",C46, "Low",, "T") -> 62 | H46: =RTD("cqg.rtd", ,"ContractData",C46, "LastTradeToday",, "T") -> 62.1 | I46: =RTD("cqg.rtd", ,"ContractData",C46, "NetLastTradeToday",, "T") -> -0.42 | J46: =RTD("cqg.rtd", ,"ContractData",C46, "PerCentNetLastTrade",, "T")/100 -> -0.006717850288 | K46: =RTD("cqg.rtd", ,"ContractData", C46, "T_CVol",, "T") -> 78796 | L46: 46 | M46: =RANK($J46,$J$1:J$65)+COUNTIF($J$1:J46,J46)-1 -> 26 | N46: S.US.PFG | O46: S.US.CFG | P46: =RTD("cqg.rtd", ,"ContractData",O46, "PerCentNetLastTrade",, "T")/100 -> -0.01635036496 | Q46: https://finance.yahoo.com/quote/CFG | T46: 0.01635036496 | V46: =RTD("cqg.rtd", ,"ContractData",O46, "LongDescription",, "T") -> Citizens Financial Group, Inc. | Y46: -0.01635036496 | AB46: 0 | AD46: =IFERROR(S46,"") ->  | AE46: =IFERROR(T46,"") -> 0.01635036496 | AF46: =IF(AE46="","",Y46) -> -0.01635036496
A47: Progressive Corp | B47: PGR | C47: S.US.PGR | D47: =RTD("cqg.rtd", ,"ContractData",C47, "LongDescription",, "T") -> Progressive Corp | E47: =RTD("cqg.rtd", ,"ContractData",C47, "Open",, "T") -> 42.26 | F47: =RTD("cqg.rtd", ,"ContractData",C47, "High",, "T") -> 42.39 | G47: =RTD("cqg.rtd", ,"ContractData",C47, "Low",, "T") -> 42.17 | H47: =RTD("cqg.rtd", ,"ContractData",C47, "LastTradeToday",, "T") -> 42.27 | I47: =RTD("cqg.rtd", ,"ContractData",C47, "NetLastTradeToday",, "T") -> 0.05 | J47: =RTD("cqg.rtd", ,"ContractData",C47, "PerCentNetLastTrade",, "T")/100 -> 0.001184272856 | K47: =RTD("cqg.rtd", ,"ContractData", C47, "T_CVol",, "T") -> 414822 | L47: 47 | M47: =RANK($J47,$J$1:J$65)+COUNTIF($J$1:J47,J47)-1 -> 7 | N47: S.US.PGR | O47: S.US.BBT | P47: =RTD("cqg.rtd", ,"ContractData",O47, "PerCentNetLastTrade",, "T")/100 -> -0.01687663418 | Q47: https://finance.yahoo.com/quote/BBT | T47: 0.01687663418 | V47: =RTD("cqg.rtd", ,"ContractData",O47, "LongDescription",, "T") -> BB&T Corp | Y47: -0.01687663418 | AB47: 0 | AE47: 0.01687663418 | AF47: -0.01687663418
A48: PNC Fincl Svcs Grp Inc | B48: PNC | C48: S.US.PNC | D48: =RTD("cqg.rtd", ,"ContractData",C48, "LongDescription",, "T") -> PNC Fincl Svcs Grp Inc | E48: =RTD("cqg.rtd", ,"ContractData",C48, "Open",, "T") -> 118.88 | F48: =RTD("cqg.rtd", ,"ContractData",C48, "High",, "T") -> 119.25 | G48: =RTD("cqg.rtd", ,"ContractData",C48, "Low",, "T") -> 116.63 | H48: =RTD("cqg.rtd", ,"ContractData",C48, "LastTradeToday",, "T") -> 117.26 | I48: =RTD("cqg.rtd", ,"ContractData",C48, "NetLastTradeToday",, "T") -> -1.6 | J48: =RTD("cqg.rtd", ,"ContractData",C48, "PerCentNetLastTrade",, "T")/100 -> -0.01346121487 | K48: =RTD("cqg.rtd", ,"ContractData", C48, "T_CVol",, "T") -> 356847 | L48: 48 | M48: =RANK($J48,$J$1:J$65)+COUNTIF($J$1:J48,J48)-1 -> 40 | N48: S.US.PNC | O48: S.US.MTB | P48: =RTD("cqg.rtd", ,"ContractData",O48, "PerCentNetLastTrade",, "T")/100 -> -0.01714430316 | Q48: https://finance.yahoo.com/quote/MTB | T48: 0.01714430316 | V48: =RTD("cqg.rtd", ,"ContractData",O48, "LongDescription",, "T") -> M&T Bank Corp | Y48: -0.01714430316 | AB48: 0 | AE48: 0.01714430316 | AF48: -0.01714430316
A49: Prudential Financial Inc | B49: PRU | C49: S.US.PRU | D49: =RTD("cqg.rtd", ,"ContractData",C49, "LongDescription",, "T") -> Prudential Financial Inc | E49: =RTD("cqg.rtd", ,"ContractData",C49, "Open",, "T") -> 105 | F49: =RTD("cqg.rtd", ,"ContractData",C49, "High",, "T") -> 105 | G49: =RTD("cqg.rtd", ,"ContractData",C49, "Low",, "T") -> 103.39 | H49: =RTD("cqg.rtd", ,"ContractData",C49, "LastTradeToday",, "T") -> 103.65 | I49: =RTD("cqg.rtd", ,"ContractData",C49, "NetLastTradeToday",, "T") -> -1.21 | J49: =RTD("cqg.rtd", ,"ContractData",C49, "PerCentNetLastTrade",, "T")/100 -> -0.01153919512 | K49: =RTD("cqg.rtd", ,"ContractData", C49, "T_CVol",, "T") -> 126466 | L49: 49 | M49: =RANK($J49,$J$1:J$65)+COUNTIF($J$1:J49,J49)-1 -> 36 | N49: S.US.PRU | O49: S.US.ETFC | P49: =RTD("cqg.rtd", ,"ContractData",O49, "PerCentNetLastTrade",, "T")/100 -> -0.01755900979 | Q49: https://finance.yahoo.com/quote/ETFC | T49: 0.01755900979 | V49: =RTD("cqg.rtd", ,"ContractData",O49, "LongDescription",, "T") -> E*Trade Financial Corp | Y49: -0.01755900979 | AB49: 0 | AE49: 0.01755900979 | AF49: -0.01755900979
A50: Regions Financial Corp | B50: RF | C50: S.US.RF | D50: =RTD("cqg.rtd", ,"ContractData",C50, "LongDescription",, "T") -> Regions Financial Corp | E50: =RTD("cqg.rtd", ,"ContractData",C50, "Open",, "T") -> 14.01 | F50: =RTD("cqg.rtd", ,"ContractData",C50, "High",, "T") -> 14.03 | G50: =RTD("cqg.rtd", ,"ContractData",C50, "Low",, "T") -> 13.6 | H50: =RTD("cqg.rtd", ,"ContractData",C50, "LastTradeToday",, "T") -> 13.67 | I50: =RTD("cqg.rtd", ,"ContractData",C50, "NetLastTradeToday",, "T") -> -0.3 | J50: =RTD("cqg.rtd", ,"ContractData",C50, "PerCentNetLastTrade",, "T")/100 -> -0.0214745884 | K50: =RTD("cqg.rtd", ,"ContractData", C50, "T_CVol",, "T") -> 3510692 | L50: 50 | M50: =RANK($J50,$J$1:J$65)+COUNTIF($J$1:J50,J50)-1 -> 56 | N50: S.US.RF | O50: S.US.NTRS | P50: =RTD("cqg.rtd", ,"ContractData",O50, "PerCentNetLastTrade",, "T")/100 -> -0.01816118048 | Q50: https://finance.yahoo.com/quote/NTRS | T50: 0.01816118048 | V50: =RTD("cqg.rtd", ,"ContractData",O50, "LongDescription",, "T") -> Northern Trust Corp | Y50: -0.01816118048 | AB50: 0 | AE50: 0.01816118048 | AF50: -0.01816118048
A51: Raymond James Fincl Inc | B51: RJF | C51: S.US.RJF | D51: =RTD("cqg.rtd", ,"ContractData",C51, "LongDescription",, "T") -> Raymond James Fincl Inc | E51: =RTD("cqg.rtd", ,"ContractData",C51, "Open",, "T") -> 73.05 | F51: =RTD("cqg.rtd", ,"ContractData",C51, "High",, "T") -> 73.05 | G51: =RTD("cqg.rtd", ,"ContractData",C51, "Low",, "T") -> 71.35 | H51: =RTD("cqg.rtd", ,"ContractData",C51, "LastTradeToday",, "T") -> 71.57 | I51: =RTD("cqg.rtd", ,"ContractData",C51, "NetLastTradeToday",, "T") -> -1.43 | J51: =RTD("cqg.rtd", ,"ContractData",C51, "PerCentNetLastTrade",, "T")/100 -> -0.0195890411 | K51: =RTD("cqg.rtd", ,"ContractData", C51, "T_CVol",, "T") -> 29214 | L51: 51 | M51: =RANK($J51,$J$1:J$65)+COUNTIF($J$1:J51,J51)-1 -> 52 | N51: S.US.RJF | O51: S.US.STI | P51: =RTD("cqg.rtd", ,"ContractData",O51, "PerCentNetLastTrade",, "T")/100 -> -0.01869331853 | Q51: https://finance.yahoo.com/quote/STI | T51: 0.01869331853 | V51: =RTD("cqg.rtd", ,"ContractData",O51, "LongDescription",, "T") -> SunTrust Banks Inc | Y51: -0.01869331853 | AB51: 0 | AE51: 0.01869331853 | AF51: -0.01869331853
A52: Charles Schwab Corp | B52: SCHW | C52: S.US.SCHW | D52: =RTD("cqg.rtd", ,"ContractData",C52, "LongDescription",, "T") -> Charles Schwab Corp | E52: =RTD("cqg.rtd", ,"ContractData",C52, "Open",, "T") -> 38.65 | F52: =RTD("cqg.rtd", ,"ContractData",C52, "High",, "T") -> 38.88 | G52: =RTD("cqg.rtd", ,"ContractData",C52, "Low",, "T") -> 37.63 | H52: =RTD("cqg.rtd", ,"ContractData",C52, "LastTradeToday",, "T") -> 37.76 | I52: =RTD("cqg.rtd", ,"ContractData",C52, "NetLastTradeToday",, "T") -> -0.9 | J52: =RTD("cqg.rtd", ,"ContractData",C52, "PerCentNetLastTrade",, "T")/100 -> -0.02327987584 | K52: =RTD("cqg.rtd", ,"ContractData", C52, "T_CVol",, "T") -> 1324051 | L52: 52 | M52: =RANK($J52,$J$1:J$65)+COUNTIF($J$1:J52,J52)-1 -> 59 | N52: S.US.SCHW | O52: S.US.RJF | P52: =RTD("cqg.rtd", ,"ContractData",O52, "PerCentNetLastTrade",, "T")/100 -> -0.0195890411 | Q52: https://finance.yahoo.com/quote/RJF | T52: 0.0195890411 | V52: =RTD("cqg.rtd", ,"ContractData",O52, "LongDescription",, "T") -> Raymond James Fincl Inc | Y52: -0.0195890411 | AB52: 0 | AE52: 0.0195890411 | AF52: -0.0195890411
A53: S&P Global Inc. | B53: SPGI | C53: S.US.SPGI | D53: =RTD("cqg.rtd", ,"ContractData",C53, "LongDescription",, "T") -> S&P Global Inc. | E53: =RTD("cqg.rtd", ,"ContractData",C53, "Open",, "T") -> 140.83 | F53: =RTD("cqg.rtd", ,"ContractData",C53, "High",, "T") -> 141.71 | G53: =RTD("cqg.rtd", ,"ContractData",C53, "Low",, "T") -> 140.53 | H53: =RTD("cqg.rtd", ,"ContractData",C53, "LastTradeToday",, "T") -> 141.35 | I53: =RTD("cqg.rtd", ,"ContractData",C53, "NetLastTradeToday",, "T") -> 0.54 | J53: =RTD("cqg.rtd", ,"ContractData",C53, "PerCentNetLastTrade",, "T")/100 -> 0.003834954904 | K53: =RTD("cqg.rtd", ,"ContractData", C53, "T_CVol",, "T") -> 131428 | L53: 53 | M53: =RANK($J53,$J$1:J$65)+COUNTIF($J$1:J53,J53)-1 -> 1 | N53: S.US.SPGI | O53: S.US.KEY | P53: =RTD("cqg.rtd", ,"ContractData",O53, "PerCentNetLastTrade",, "T")/100 -> -0.01962983735 | Q53: https://finance.yahoo.com/quote/KEY | T53: 0.01962983735 | V53: =RTD("cqg.rtd", ,"ContractData",O53, "LongDescription",, "T") -> KeyCorp | Y53: -0.01962983735 | AB53: 0 | AE53: 0.01962983735 | AF53: -0.01962983735
A54: Straits Times Index, Jun 17 | B54: STI | C54: S.US.STI | D54: =RTD("cqg.rtd", ,"ContractData",C54, "LongDescription",, "T") -> SunTrust Banks Inc | E54: =RTD("cqg.rtd", ,"ContractData",C54, "Open",, "T") -> 54.15 | F54: =RTD("cqg.rtd", ,"ContractData",C54, "High",, "T") -> 54.18 | G54: =RTD("cqg.rtd", ,"ContractData",C54, "Low",, "T") -> 52.69 | H54: =RTD("cqg.rtd", ,"ContractData",C54, "LastTradeToday",, "T") -> 53.02 | I54: =RTD("cqg.rtd", ,"ContractData",C54, "NetLastTradeToday",, "T") -> -1.01 | J54: =RTD("cqg.rtd", ,"ContractData",C54, "PerCentNetLastTrade",, "T")/100 -> -0.01869331853 | K54: =RTD("cqg.rtd", ,"ContractData", C54, "T_CVol",, "T") -> 585608 | L54: 54 | M54: =RANK($J54,$J$1:J$65)+COUNTIF($J$1:J54,J54)-1 -> 51 | N54: S.US.STI | O54: S.US.HBAN | P54: =RTD("cqg.rtd", ,"ContractData",O54, "PerCentNetLastTrade",, "T")/100 -> -0.02119309262 | Q54: https://finance.yahoo.com/quote/HBAN | T54: 0.02119309262 | V54: =RTD("cqg.rtd", ,"ContractData",O54, "LongDescription",, "T") -> Huntington Bancshrs Inc | Y54: -0.02119309262 | AB54: 0 | AE54: 0.02119309262 | AF54: -0.02119309262
A55: STOXX Europe 600 Telecoms, Jun 17 | B55: STT | C55: S.US.STT | D55: =RTD("cqg.rtd", ,"ContractData",C55, "LongDescription",, "T") -> State Street Corp | E55: =RTD("cqg.rtd", ,"ContractData",C55, "Open",, "T") -> 81.49 | F55: =RTD("cqg.rtd", ,"ContractData",C55, "High",, "T") -> 81.69 | G55: =RTD("cqg.rtd", ,"ContractData",C55, "Low",, "T") -> 80.73 | H55: =RTD("cqg.rtd", ,"ContractData",C55, "LastTradeToday",, "T") -> 81.03 | I55: =RTD("cqg.rtd", ,"ContractData",C55, "NetLastTradeToday",, "T") -> -0.65 | J55: =RTD("cqg.rtd", ,"ContractData",C55, "PerCentNetLastTrade",, "T")/100 -> -0.007957884427 | K55: =RTD("cqg.rtd", ,"ContractData", C55, "T_CVol",, "T") -> 193479 | L55: 55 | M55: =RANK($J55,$J$1:J$65)+COUNTIF($J$1:J55,J55)-1 -> 30 | N55: S.US.STT | O55: S.US.LUK | P55: =RTD("cqg.rtd", ,"ContractData",O55, "PerCentNetLastTrade",, "T")/100 -> -0.02131147541 | Q55: https://finance.yahoo.com/quote/LUK | T55: 0.02131147541 | V55: =RTD("cqg.rtd", ,"ContractData",O55, "LongDescription",, "T") -> Leucadia National Corp | Y55: -0.02131147541 | AB55: 0 | AE55: 0.02131147541 | AF55: -0.02131147541
A56: Synchrony Financial | B56: SYF | C56: S.US.SYF | D56: =RTD("cqg.rtd", ,"ContractData",C56, "LongDescription",, "T") -> Synchrony Financial | E56: =RTD("cqg.rtd", ,"ContractData",C56, "Open",, "T") -> 27.1 | F56: =RTD("cqg.rtd", ,"ContractData",C56, "High",, "T") -> 27.2 | G56: =RTD("cqg.rtd", ,"ContractData",C56, "Low",, "T") -> 26.34 | H56: =RTD("cqg.rtd", ,"ContractData",C56, "LastTradeToday",, "T") -> 26.5 | I56: =RTD("cqg.rtd", ,"ContractData",C56, "NetLastTradeToday",, "T") -> -0.6 | J56: =RTD("cqg.rtd", ,"ContractData",C56, "PerCentNetLastTrade",, "T")/100 -> -0.0221402214 | K56: =RTD("cqg.rtd", ,"ContractData", C56, "T_CVol",, "T") -> 1547379 | L56: 56 | M56: =RANK($J56,$J$1:J$65)+COUNTIF($J$1:J56,J56)-1 -> 58 | N56: S.US.SYF | O56: S.US.RF | P56: =RTD("cqg.rtd", ,"ContractData",O56, "PerCentNetLastTrade",, "T")/100 -> -0.0214745884 | Q56: https://finance.yahoo.com/quote/RF | T56: 0.0214745884 | V56: =RTD("cqg.rtd", ,"ContractData",O56, "LongDescription",, "T") -> Regions Financial Corp | Y56: -0.0214745884 | AB56: 0 | AE56: 0.0214745884 | AF56: -0.0214745884
A57: Torchmark Corp | B57: TMK | C57: S.US.TMK | D57: =RTD("cqg.rtd", ,"ContractData",C57, "LongDescription",, "T") -> Torchmark Corp | E57: =RTD("cqg.rtd", ,"ContractData",C57, "Open",, "T") -> 75.37 | F57: =RTD("cqg.rtd", ,"ContractData",C57, "High",, "T") -> 75.37 | G57: =RTD("cqg.rtd", ,"ContractData",C57, "Low",, "T") -> 74.6 | H57: =RTD("cqg.rtd", ,"ContractData",C57, "LastTradeToday",, "T") -> 74.75 | I57: =RTD("cqg.rtd", ,"ContractData",C57, "NetLastTradeToday",, "T") -> -0.52 | J57: =RTD("cqg.rtd", ,"ContractData",C57, "PerCentNetLastTrade",, "T")/100 -> -0.006908462867 | K57: =RTD("cqg.rtd", ,"ContractData", C57, "T_CVol",, "T") -> 39110 | L57: 57 | M57: =RANK($J57,$J$1:J$65)+COUNTIF($J$1:J57,J57)-1 -> 27 | N57: S.US.TMK | O57: S.US.JPM | P57: =RTD("cqg.rtd", ,"ContractData",O57, "PerCentNetLastTrade",, "T")/100 -> -0.02169249106 | Q57: https://finance.yahoo.com/quote/JPM | T57: 0.02169249106 | V57: =RTD("cqg.rtd", ,"ContractData",O57, "LongDescription",, "T") -> JPMorgan Chase & Co. | Y57: -0.02169249106 | AB57: 0 | AE57: 0.02169249106 | AF57: -0.02169249106
A58: T Rowe Price Group Inc | B58: TROW | C58: S.US.TROW | D58: =RTD("cqg.rtd", ,"ContractData",C58, "LongDescription",, "T") -> T Rowe Price Group Inc | E58: =RTD("cqg.rtd", ,"ContractData",C58, "Open",, "T") -> 69.79 | F58: =RTD("cqg.rtd", ,"ContractData",C58, "High",, "T") -> 70 | G58: =RTD("cqg.rtd", ,"ContractData",C58, "Low",, "T") -> 69.6 | H58: =RTD("cqg.rtd", ,"ContractData",C58, "LastTradeToday",, "T") -> 69.82 | I58: =RTD("cqg.rtd", ,"ContractData",C58, "NetLastTradeToday",, "T") -> 0.04 | J58: =RTD("cqg.rtd", ,"ContractData",C58, "PerCentNetLastTrade",, "T")/100 -> 0.0005732301519 | K58: =RTD("cqg.rtd", ,"ContractData", C58, "T_CVol",, "T") -> 258762 | L58: 58 | M58: =RANK($J58,$J$1:J$65)+COUNTIF($J$1:J58,J58)-1 -> 13 | N58: S.US.TROW | O58: S.US.SYF | P58: =RTD("cqg.rtd", ,"ContractData",O58, "PerCentNetLastTrade",, "T")/100 -> -0.0221402214 | Q58: https://finance.yahoo.com/quote/SYF | T58: 0.0221402214 | V58: =RTD("cqg.rtd", ,"ContractData",O58, "LongDescription",, "T") -> Synchrony Financial | Y58: -0.0221402214 | AB58: 0 | AE58: 0.0221402214 | AF58: -0.0221402214
A59: Travelers Companies, Inc | B59: TRV | C59: S.US.TRV | D59: =RTD("cqg.rtd", ,"ContractData",C59, "LongDescription",, "T") -> Travelers Companies, Inc | E59: =RTD("cqg.rtd", ,"ContractData",C59, "Open",, "T") -> 123.87 | F59: =RTD("cqg.rtd", ,"ContractData",C59, "High",, "T") -> 124.09 | G59: =RTD("cqg.rtd", ,"ContractData",C59, "Low",, "T") -> 123.53 | H59: =RTD("cqg.rtd", ,"ContractData",C59, "LastTradeToday",, "T") -> 123.95 | I59: =RTD("cqg.rtd", ,"ContractData",C59, "NetLastTradeToday",, "T") -> 0.22 | J59: =RTD("cqg.rtd", ,"ContractData",C59, "PerCentNetLastTrade",, "T")/100 -> 0.001778065142 | K59: =RTD("cqg.rtd", ,"ContractData", C59, "T_CVol",, "T") -> 140601 | L59: 59 | M59: =RANK($J59,$J$1:J$65)+COUNTIF($J$1:J59,J59)-1 -> 5 | N59: S.US.TRV | O59: S.US.SCHW | P59: =RTD("cqg.rtd", ,"ContractData",O59, "PerCentNetLastTrade",, "T")/100 -> -0.02327987584 | Q59: https://finance.yahoo.com/quote/SCHW | T59: 0.02327987584 | V59: =RTD("cqg.rtd", ,"ContractData",O59, "LongDescription",, "T") -> Charles Schwab Corp | Y59: -0.02327987584 | AB59: 0 | AE59: 0.02327987584 | AF59: -0.02327987584
A60: UNUMProvident Corp | B60: UNM | C60: S.US.UNM | D60: =RTD("cqg.rtd", ,"ContractData",C60, "LongDescription",, "T") -> UNUMProvident Corp | E60: =RTD("cqg.rtd", ,"ContractData",C60, "Open",, "T") -> 45.08 | F60: =RTD("cqg.rtd", ,"ContractData",C60, "High",, "T") -> 45.08 | G60: =RTD("cqg.rtd", ,"ContractData",C60, "Low",, "T") -> 44.42 | H60: =RTD("cqg.rtd", ,"ContractData",C60, "LastTradeToday",, "T") -> 44.5 | I60: =RTD("cqg.rtd", ,"ContractData",C60, "NetLastTradeToday",, "T") -> -0.51 | J60: =RTD("cqg.rtd", ,"ContractData",C60, "PerCentNetLastTrade",, "T")/100 -> -0.01133081537 | K60: =RTD("cqg.rtd", ,"ContractData", C60, "T_CVol",, "T") -> 77295 | L60: 60 | M60: =RANK($J60,$J$1:J$65)+COUNTIF($J$1:J60,J60)-1 -> 35 | N60: S.US.UNM | O60: S.US.COF | P60: =RTD("cqg.rtd", ,"ContractData",O60, "PerCentNetLastTrade",, "T")/100 -> -0.02414409811 | Q60: https://finance.yahoo.com/quote/COF | T60: 0.02414409811 | V60: =RTD("cqg.rtd", ,"ContractData",O60, "LongDescription",, "T") -> Capital One Financl Corp | Y60: -0.02414409811 | AB60: 0 | AE60: 0.02414409811 | AF60: -0.02414409811
A61: U S Bancorp | B61: USB | C61: S.US.USB | D61: =RTD("cqg.rtd", ,"ContractData",C61, "LongDescription",, "T") -> U S Bancorp | E61: =RTD("cqg.rtd", ,"ContractData",C61, "Open",, "T") -> 51.21 | F61: =RTD("cqg.rtd", ,"ContractData",C61, "High",, "T") -> 51.25 | G61: =RTD("cqg.rtd", ,"ContractData",C61, "Low",, "T") -> 50.43 | H61: =RTD("cqg.rtd", ,"ContractData",C61, "LastTradeToday",, "T") -> 50.49 | I61: =RTD("cqg.rtd", ,"ContractData",C61, "NetLastTradeToday",, "T") -> -0.61 | J61: =RTD("cqg.rtd", ,"ContractData",C61, "PerCentNetLastTrade",, "T")/100 -> -0.01193737769 | K61: =RTD("cqg.rtd", ,"ContractData", C61, "T_CVol",, "T") -> 1045893 | L61: 61 | M61: =RANK($J61,$J$1:J$65)+COUNTIF($J$1:J61,J61)-1 -> 37 | N61: S.US.USB | O61: S.US.MS | P61: =RTD("cqg.rtd", ,"ContractData",O61, "PerCentNetLastTrade",, "T")/100 -> -0.02483443709 | Q61: https://finance.yahoo.com/quote/MS | T61: 0.02483443709 | V61: =RTD("cqg.rtd", ,"ContractData",O61, "LongDescription",, "T") -> Morgan Stanley | Y61: -0.02483443709 | AB61: 0 | AE61: 0.02483443709 | AF61: -0.02483443709
A62: Wells Fargo & Co New | B62: WFC | C62: S.US.WFC | D62: =RTD("cqg.rtd", ,"ContractData",C62, "LongDescription",, "T") -> Wells Fargo & Co New | E62: =RTD("cqg.rtd", ,"ContractData",C62, "Open",, "T") -> 52.23 | F62: =RTD("cqg.rtd", ,"ContractData",C62, "High",, "T") -> 52.25 | G62: =RTD("cqg.rtd", ,"ContractData",C62, "Low",, "T") -> 51.3 | H62: =RTD("cqg.rtd", ,"ContractData",C62, "LastTradeToday",, "T") -> 51.43 | I62: =RTD("cqg.rtd", ,"ContractData",C62, "NetLastTradeToday",, "T") -> -0.73 | J62: =RTD("cqg.rtd", ,"ContractData",C62, "PerCentNetLastTrade",, "T")/100 -> -0.01399539877 | K62: =RTD("cqg.rtd", ,"ContractData", C62, "T_CVol",, "T") -> 4698735 | L62: 62 | M62: =RANK($J62,$J$1:J$65)+COUNTIF($J$1:J62,J62)-1 -> 43 | N62: S.US.WFC | O62: S.US.C | P62: =RTD("cqg.rtd", ,"ContractData",O62, "PerCentNetLastTrade",, "T")/100 -> -0.02514600909 | Q62: https://finance.yahoo.com/quote/C | T62: 0.02514600909 | V62: =RTD("cqg.rtd", ,"ContractData",O62, "LongDescription",, "T") -> Citigroup Inc | Y62: -0.02514600909 | AB62: 0 | AE62: 0.02514600909 | AF62: -0.02514600909
A63: Willis Towers Watson | B63: WLTW | C63: S.US.WLTW | D63: =RTD("cqg.rtd", ,"ContractData",C63, "LongDescription",, "T") -> Willis Towers Watson | E63: =RTD("cqg.rtd", ,"ContractData",C63, "Open",, "T") -> 145.05 | F63: =RTD("cqg.rtd", ,"ContractData",C63, "High",, "T") -> 145.37 | G63: =RTD("cqg.rtd", ,"ContractData",C63, "Low",, "T") -> 144.04 | H63: =RTD("cqg.rtd", ,"ContractData",C63, "LastTradeToday",, "T") -> 145.19 | I63: =RTD("cqg.rtd", ,"ContractData",C63, "NetLastTradeToday",, "T") -> 0.15 | J63: =RTD("cqg.rtd", ,"ContractData",C63, "PerCentNetLastTrade",, "T")/100 -> 0.001034197463 | K63: =RTD("cqg.rtd", ,"ContractData", C63, "T_CVol",, "T") -> 144929 | L63: 63 | M63: =RANK($J63,$J$1:J$65)+COUNTIF($J$1:J63,J63)-1 -> 8 | N63: S.US.WLTW | O63: S.US.BAC | P63: =RTD("cqg.rtd", ,"ContractData",O63, "PerCentNetLastTrade",, "T")/100 -> -0.03230030554 | Q63: https://finance.yahoo.com/quote/BAC | T63: 0.03230030554 | V63: =RTD("cqg.rtd", ,"ContractData",O63, "LongDescription",, "T") -> Bank of America Corp | Y63: -0.03230030554 | AB63: 0 | AE63: 0.03230030554 | AF63: -0.03230030554
A64: XL Group plc | B64: XL | C64: S.US.XL | D64: =RTD("cqg.rtd", ,"ContractData",C64, "LongDescription",, "T") -> XL Group plc | E64: =RTD("cqg.rtd", ,"ContractData",C64, "Open",, "T") -> 43.38 | F64: =RTD("cqg.rtd", ,"ContractData",C64, "High",, "T") -> 43.54 | G64: =RTD("cqg.rtd", ,"ContractData",C64, "Low",, "T") -> 43.25 | H64: =RTD("cqg.rtd", ,"ContractData",C64, "LastTradeToday",, "T") -> 43.44 | I64: =RTD("cqg.rtd", ,"ContractData",C64, "NetLastTradeToday",, "T") -> 0.04 | J64: =RTD("cqg.rtd", ,"ContractData",C64, "PerCentNetLastTrade",, "T")/100 -> 0.0009216589862 | K64: =RTD("cqg.rtd", ,"ContractData", C64, "T_CVol",, "T") -> 75991 | L64: 64 | M64: =RANK($J64,$J$1:J$65)+COUNTIF($J$1:J64,J64)-1 -> 10 | N64: S.US.XL | O64: S.US.NAVI | P64: =RTD("cqg.rtd", ,"ContractData",O64, "PerCentNetLastTrade",, "T")/100 -> -0.03542234332 | Q64: https://finance.yahoo.com/quote/NAVI | T64: 0.03542234332 | V64: =RTD("cqg.rtd", ,"ContractData",O64, "LongDescription",, "T") -> Navient Corporation | Y64: -0.03542234332 | AB64: 0 | AE64: 0.03542234332 | AF64: -0.03542234332
A65: Zions Bancorp | B65: ZION | C65: S.US.ZION | D65: =RTD("cqg.rtd", ,"ContractData",C65, "LongDescription",, "T") -> Zions Bancorp | E65: =RTD("cqg.rtd", ,"ContractData",C65, "Open",, "T") -> 39.98 | F65: =RTD("cqg.rtd", ,"ContractData",C65, "High",, "T") -> 40.06 | G65: =RTD("cqg.rtd", ,"ContractData",C65, "Low",, "T") -> 39.34 | H65: =RTD("cqg.rtd", ,"ContractData",C65, "LastTradeToday",, "T") -> 39.56 | I65: =RTD("cqg.rtd", ,"ContractData",C65, "NetLastTradeToday",, "T") -> -0.31 | J65: =RTD("cqg.rtd", ,"ContractData",C65, "PerCentNetLastTrade",, "T")/100 -> -0.007775269626 | K65: =RTD("cqg.rtd", ,"ContractData", C65, "T_CVol",, "T") -> 946080 | L65: 65 | M65: =RANK($J65,$J$1:J$65)+COUNTIF($J$1:J65,J65)-1 -> 28 | N65: S.US.ZION | O65: S.US.GS | P65: =RTD("cqg.rtd", ,"ContractData",O65, "PerCentNetLastTrade",, "T")/100 -> -0.03598571559 | Q65: https://finance.yahoo.com/quote/GS | T65: =IF(P65>=0,NA(),-1*P65) -> 0.03598571559 | V65: =RTD("cqg.rtd", ,"ContractData",O65, "LongDescription",, "T") -> Goldman Sachs Group | Y65: -0.03598571559 | AB65: 0 | AE65: 0.03598571559 | AF65: -0.03598571559
AB70: =SUM(AB1:AB65)/65 -> 0.2307692308
